{"text_format":"3","workbook":"xlsx","n_sheets":4,"sheets":["สรุปงบประมาณ YTD","สรุปค่าใช้จ่ายรายเดือน","ค่าใช้จ่ายที่แสดงรายการ","การกุศลและการสนับสนุนทางการเงิน"],"not_rendered":{"images":1,"defined_names":15},"read":"whole","date_system":"1900"}

{"sheet":"สรุปงบประมาณ YTD","index":0,"n_rows":16,"n_cols":7,"rows_kept":16,"merged":[[1,1,1,4]]}
[]
[null,"\"ตามจริง\" เทียบกับ \"งบประมาณ\" ตั้งแต่ต้นปีจนถึงปัจจุบัน",{"$nulls":3},"ปี",{"$f":"YEAR(TODAY())+543","v":2562}]
[null,"รหัส G/L","ชื่อบัญชี","ตามจริง","งบประมาณ","฿ ที่เหลืออยู่","% ที่เหลืออยู่"]
[null,1000,"การโฆษณา",{"$f":"SUMIF(MonthlyExpensesSummary[รหัส G/L],YearToDateTable[[#This Row],[รหัส G/L]],MonthlyExpensesSummary[ผลรวม])","v":{"v":0,"d":"฿0.00"}},{"v":100000,"d":"฿100,000.00"},{"$f":"IF(YearToDateTable[[#This Row],[งบประมาณ]]=\"\",\"\",YearToDateTable[[#This Row],[งบประมาณ]]-YearToDateTable[[#This Row],[ตามจริง]])","v":{"v":100000,"d":"฿100,000.00"}},{"$f":"IFERROR(YearToDateTable[[#This Row],[฿ ที่เหลืออยู่]]/YearToDateTable[[#This Row],[งบประมาณ]],\"\")","v":{"v":1,"d":"100.00%"}}]
[null,2000,"อุปกรณ์ในสำนักงาน",{"$f":"SUMIF(MonthlyExpensesSummary[รหัส G/L],YearToDateTable[[#This Row],[รหัส G/L]],MonthlyExpensesSummary[ผลรวม])","v":{"v":0,"d":"฿0.00"}},{"v":100000,"d":"฿100,000.00"},{"$f":"IF(YearToDateTable[[#This Row],[งบประมาณ]]=\"\",\"\",YearToDateTable[[#This Row],[งบประมาณ]]-YearToDateTable[[#This Row],[ตามจริง]])","v":{"v":100000,"d":"฿100,000.00"}},{"$f":"IFERROR(YearToDateTable[[#This Row],[฿ ที่เหลืออยู่]]/YearToDateTable[[#This Row],[งบประมาณ]],\"\")","v":{"v":1,"d":"100.00%"}}]
[null,3000,"เครื่องพิมพ์",{"$f":"SUMIF(MonthlyExpensesSummary[รหัส G/L],YearToDateTable[[#This Row],[รหัส G/L]],MonthlyExpensesSummary[ผลรวม])","v":{"v":0,"d":"฿0.00"}},{"v":100000,"d":"฿100,000.00"},{"$f":"IF(YearToDateTable[[#This Row],[งบประมาณ]]=\"\",\"\",YearToDateTable[[#This Row],[งบประมาณ]]-YearToDateTable[[#This Row],[ตามจริง]])","v":{"v":100000,"d":"฿100,000.00"}},{"$f":"IFERROR(YearToDateTable[[#This Row],[฿ ที่เหลืออยู่]]/YearToDateTable[[#This Row],[งบประมาณ]],\"\")","v":{"v":1,"d":"100.00%"}}]
[null,4000,"ต้นทุนเซิร์ฟเวอร์",{"$f":"SUMIF(MonthlyExpensesSummary[รหัส G/L],YearToDateTable[[#This Row],[รหัส G/L]],MonthlyExpensesSummary[ผลรวม])","v":{"v":0,"d":"฿0.00"}},{"v":100000,"d":"฿100,000.00"},{"$f":"IF(YearToDateTable[[#This Row],[งบประมาณ]]=\"\",\"\",YearToDateTable[[#This Row],[งบประมาณ]]-YearToDateTable[[#This Row],[ตามจริง]])","v":{"v":100000,"d":"฿100,000.00"}},{"$f":"IFERROR(YearToDateTable[[#This Row],[฿ ที่เหลืออยู่]]/YearToDateTable[[#This Row],[งบประมาณ]],\"\")","v":{"v":1,"d":"100.00%"}}]
[null,5000,"วัสดุ",{"$f":"SUMIF(MonthlyExpensesSummary[รหัส G/L],YearToDateTable[[#This Row],[รหัส G/L]],MonthlyExpensesSummary[ผลรวม])","v":{"v":0,"d":"฿0.00"}},{"v":50000,"d":"฿50,000.00"},{"$f":"IF(YearToDateTable[[#This Row],[งบประมาณ]]=\"\",\"\",YearToDateTable[[#This Row],[งบประมาณ]]-YearToDateTable[[#This Row],[ตามจริง]])","v":{"v":50000,"d":"฿50,000.00"}},{"$f":"IFERROR(YearToDateTable[[#This Row],[฿ ที่เหลืออยู่]]/YearToDateTable[[#This Row],[งบประมาณ]],\"\")","v":{"v":1,"d":"100.00%"}}]
[null,6000,"ค่าใช้จ่ายไคลเอ็นต์",{"$f":"SUMIF(MonthlyExpensesSummary[รหัส G/L],YearToDateTable[[#This Row],[รหัส G/L]],MonthlyExpensesSummary[ผลรวม])","v":{"v":0,"d":"฿0.00"}},{"v":25000,"d":"฿25,000.00"},{"$f":"IF(YearToDateTable[[#This Row],[งบประมาณ]]=\"\",\"\",YearToDateTable[[#This Row],[งบประมาณ]]-YearToDateTable[[#This Row],[ตามจริง]])","v":{"v":25000,"d":"฿25,000.00"}},{"$f":"IFERROR(YearToDateTable[[#This Row],[฿ ที่เหลืออยู่]]/YearToDateTable[[#This Row],[งบประมาณ]],\"\")","v":{"v":1,"d":"100.00%"}}]
[null,7000,"คอมพิวเตอร์",{"$f":"SUMIF(MonthlyExpensesSummary[รหัส G/L],YearToDateTable[[#This Row],[รหัส G/L]],MonthlyExpensesSummary[ผลรวม])","v":{"v":0,"d":"฿0.00"}},{"v":75000,"d":"฿75,000.00"},{"$f":"IF(YearToDateTable[[#This Row],[งบประมาณ]]=\"\",\"\",YearToDateTable[[#This Row],[งบประมาณ]]-YearToDateTable[[#This Row],[ตามจริง]])","v":{"v":75000,"d":"฿75,000.00"}},{"$f":"IFERROR(YearToDateTable[[#This Row],[฿ ที่เหลืออยู่]]/YearToDateTable[[#This Row],[งบประมาณ]],\"\")","v":{"v":1,"d":"100.00%"}}]
[null,8000,"แผนประกันสุขภาพ",{"$f":"SUMIF(MonthlyExpensesSummary[รหัส G/L],YearToDateTable[[#This Row],[รหัส G/L]],MonthlyExpensesSummary[ผลรวม])","v":{"v":0,"d":"฿0.00"}},{"v":65000,"d":"฿65,000.00"},{"$f":"IF(YearToDateTable[[#This Row],[งบประมาณ]]=\"\",\"\",YearToDateTable[[#This Row],[งบประมาณ]]-YearToDateTable[[#This Row],[ตามจริง]])","v":{"v":65000,"d":"฿65,000.00"}},{"$f":"IFERROR(YearToDateTable[[#This Row],[฿ ที่เหลืออยู่]]/YearToDateTable[[#This Row],[งบประมาณ]],\"\")","v":{"v":1,"d":"100.00%"}}]
[null,9000,"ต้นทุนอาคาร",{"$f":"SUMIF(MonthlyExpensesSummary[รหัส G/L],YearToDateTable[[#This Row],[รหัส G/L]],MonthlyExpensesSummary[ผลรวม])","v":{"v":0,"d":"฿0.00"}},{"v":125000,"d":"฿125,000.00"},{"$f":"IF(YearToDateTable[[#This Row],[งบประมาณ]]=\"\",\"\",YearToDateTable[[#This Row],[งบประมาณ]]-YearToDateTable[[#This Row],[ตามจริง]])","v":{"v":125000,"d":"฿125,000.00"}},{"$f":"IFERROR(YearToDateTable[[#This Row],[฿ ที่เหลืออยู่]]/YearToDateTable[[#This Row],[งบประมาณ]],\"\")","v":{"v":1,"d":"100.00%"}}]
[null,10000,"การตลาด",{"$f":"SUMIF(MonthlyExpensesSummary[รหัส G/L],YearToDateTable[[#This Row],[รหัส G/L]],MonthlyExpensesSummary[ผลรวม])","v":{"v":0,"d":"฿0.00"}},{"v":100000,"d":"฿100,000.00"},{"$f":"IF(YearToDateTable[[#This Row],[งบประมาณ]]=\"\",\"\",YearToDateTable[[#This Row],[งบประมาณ]]-YearToDateTable[[#This Row],[ตามจริง]])","v":{"v":100000,"d":"฿100,000.00"}},{"$f":"IFERROR(YearToDateTable[[#This Row],[฿ ที่เหลืออยู่]]/YearToDateTable[[#This Row],[งบประมาณ]],\"\")","v":{"v":1,"d":"100.00%"}}]
[null,11000,"การกุศล",{"$f":"SUMIF(MonthlyExpensesSummary[รหัส G/L],YearToDateTable[[#This Row],[รหัส G/L]],MonthlyExpensesSummary[ผลรวม])","v":{"v":0,"d":"฿0.00"}},{"v":250000,"d":"฿250,000.00"},{"$f":"IF(YearToDateTable[[#This Row],[งบประมาณ]]=\"\",\"\",YearToDateTable[[#This Row],[งบประมาณ]]-YearToDateTable[[#This Row],[ตามจริง]])","v":{"v":250000,"d":"฿250,000.00"}},{"$f":"IFERROR(YearToDateTable[[#This Row],[฿ ที่เหลืออยู่]]/YearToDateTable[[#This Row],[งบประมาณ]],\"\")","v":{"v":1,"d":"100.00%"}}]
[null,12000,"การสนับสนุนทางการเงิน",{"$f":"SUMIF(MonthlyExpensesSummary[รหัส G/L],YearToDateTable[[#This Row],[รหัส G/L]],MonthlyExpensesSummary[ผลรวม])","v":{"v":0,"d":"฿0.00"}},{"v":50000,"d":"฿50,000.00"},{"$f":"IF(YearToDateTable[[#This Row],[งบประมาณ]]=\"\",\"\",YearToDateTable[[#This Row],[งบประมาณ]]-YearToDateTable[[#This Row],[ตามจริง]])","v":{"v":50000,"d":"฿50,000.00"}},{"$f":"IFERROR(YearToDateTable[[#This Row],[฿ ที่เหลืออยู่]]/YearToDateTable[[#This Row],[งบประมาณ]],\"\")","v":{"v":1,"d":"100.00%"}}]
[null,"ผลรวม",null,{"$f":"SUBTOTAL(109,YearToDateTable[ตามจริง])","v":{"v":0,"d":"฿0.00"}},{"$f":"SUBTOTAL(109,YearToDateTable[งบประมาณ])","v":{"v":1140000,"d":"฿1,140,000.00"}},{"$f":"SUBTOTAL(109,YearToDateTable[฿ ที่เหลืออยู่])","v":{"v":1140000,"d":"฿1,140,000.00"}},{"$f":"YearToDateTable[[#Totals],[฿ ที่เหลืออยู่]]/YearToDateTable[[#Totals],[งบประมาณ]]","v":{"v":1,"d":"100.00%"}}]

{"sheet":"สรุปค่าใช้จ่ายรายเดือน","index":1,"n_rows":18,"n_cols":17,"rows_kept":18,"merged":[[1,1,1,16]]}
[]
[null,"สรุปค่าใช้จ่ายรายเดือน"]
[null,"ตัวแบ่งส่วนข้อมูลสำหรับกรองข้อมูลตาม \"ชื่อบัญชี\" จะอยู่ในเซลล์นี้",null,{"$f":"DATEVALUE(\"1 ม.ค.\"&_YEAR)","v":{"v":241793,"d":"24179300.00%"}},{"$f":"DATEVALUE(\"1 ก.พ.\"&_YEAR)","v":{"v":241824,"d":"24182400.00%"}},{"$f":"DATEVALUE(\"1 มี.ค.\"&_YEAR)","v":{"v":241852,"d":"24185200.00%"}},{"$f":"DATEVALUE(\"1 เม.ย.\"&_YEAR)","v":{"v":241883,"d":"24188300.00%"}},{"$f":"DATEVALUE(\"1 พ.ค.\"&_YEAR)","v":{"v":241913,"d":"24191300.00%"}},{"$f":"DATEVALUE(\"1 มิ.ย.\"&_YEAR)","v":{"v":241944,"d":"24194400.00%"}},{"$f":"DATEVALUE(\"1 ก.ค.\"&_YEAR)","v":{"v":241974,"d":"24197400.00%"}},{"$f":"DATEVALUE(\"1 ส.ค.\"&_YEAR)","v":{"v":242005,"d":"24200500.00%"}},{"$f":"DATEVALUE(\"1 ก.ย.\"&_YEAR)","v":{"v":242036,"d":"24203600.00%"}},{"$f":"DATEVALUE(\"1 ต.ค.\"&_YEAR)","v":{"v":242066,"d":"24206600.00%"}},{"$f":"DATEVALUE(\"1 พ.ย.\"&_YEAR)","v":{"v":242097,"d":"24209700.00%"}},{"$f":"DATEVALUE(\"1 ธ.ค.\"&_YEAR)","v":{"v":242127,"d":"24212700.00%"}}]
[{"$nulls":3},{"$f":"EOMONTH(D3,0)","v":{"v":241823,"d":"24182300.00%"}},{"$f":"EOMONTH(E3,0)","v":{"v":241851,"d":"24185100.00%"}},{"$f":"EOMONTH(F3,0)","v":{"v":241882,"d":"24188200.00%"}},{"$f":"EOMONTH(G3,0)","v":{"v":241912,"d":"24191200.00%"}},{"$f":"EOMONTH(H3,0)","v":{"v":241943,"d":"24194300.00%"}},{"$f":"EOMONTH(I3,0)","v":{"v":241973,"d":"24197300.00%"}},{"v":242004,"d":"24200400.00%"},{"v":242035,"d":"24203500.00%"},{"v":242065,"d":"24206500.00%"},{"v":242096,"d":"24209600.00%"},{"v":242126,"d":"24212600.00%"},{"v":242157,"d":"24215700.00%"}]
[null,"รหัส G/L","ชื่อบัญชี","มกราคม","กุมภาพันธ์","มีนาคม","เมษายน","พฤษภาคม","มิถุนายน","กรกฎาคม","สิงหาคม","กันยายน","ตุลาคม","พฤศจิกายน","ธันวาคม","ผลรวม"," "]
[null,1000,"การโฆษณา",{"$f":"SUMIFS(ItemizedExpenses[ยอดเงินเช็ค],ItemizedExpenses[รหัส G/L],MonthlyExpensesSummary[[#This Row],[รหัส G/L]],ItemizedExpenses[วันที่ในใบแจ้งหนี้],\">=\"&D$3,ItemizedExpenses[วันที่ในใบแจ้งหนี้],\"<=\"&D$4)+SUMIFS(อื่นๆ[ยอดเงินเช็ค],อื่นๆ[รหัส G/L],MonthlyExpensesSummary[[#This Row],[รหัส G/L]],อื่นๆ[วันที่เริ่มขอเช็ค],\">=\"&DATEVALUE(\" 1 \"&MonthlyExpensesSummary[[#Headers],[มกราคม]]&_YEAR),อื่นๆ[วันที่เริ่มขอเช็ค],\"<=\"&D$4)","v":{"v":0,"d":"฿0.00"}},{"$f":"SUMIFS(ItemizedExpenses[ยอดเงินเช็ค],ItemizedExpenses[รหัส G/L],MonthlyExpensesSummary[[#This Row],[รหัส G/L]],ItemizedExpenses[วันที่ในใบแจ้งหนี้],\">=\"&E$3,ItemizedExpenses[วันที่ในใบแจ้งหนี้],\"<=\"&E$4)+SUMIFS(อื่นๆ[ยอดเงินเช็ค],อื่นๆ[รหัส G/L],MonthlyExpensesSummary[[#This Row],[รหัส G/L]],อื่นๆ[วันที่เริ่มขอเช็ค],\">=\"&DATEVALUE(\" 1 \"&MonthlyExpensesSummary[[#Headers],[กุมภาพันธ์]]&_YEAR),อื่นๆ[วันที่เริ่มขอเช็ค],\"<=\"&E$4)","v":{"v":0,"d":"฿0.00"}},{"$f":"SUMIFS(ItemizedExpenses[ยอดเงินเช็ค],ItemizedExpenses[รหัส G/L],MonthlyExpensesSummary[[#This Row],[รหัส G/L]],ItemizedExpenses[วันที่ในใบแจ้งหนี้],\">=\"&F$3,ItemizedExpenses[วันที่ในใบแจ้งหนี้],\"<=\"&F$4)+SUMIFS(อื่นๆ[ยอดเงินเช็ค],อื่นๆ[รหัส G/L],MonthlyExpensesSummary[[#This Row],[รหัส G/L]],อื่นๆ[วันที่เริ่มขอเช็ค],\">=\"&DATEVALUE(\" 1 \"&MonthlyExpensesSummary[[#Headers],[มีนาคม]]&_YEAR),อื่นๆ[วันที่เริ่มขอเช็ค],\"<=\"&F$4)","v":{"v":0,"d":"฿0.00"}},{"$f":"SUMIFS(ItemizedExpenses[ยอดเงินเช็ค],ItemizedExpenses[รหัส G/L],MonthlyExpensesSummary[[#This Row],[รหัส G/L]],ItemizedExpenses[วันที่ในใบแจ้งหนี้],\">=\"&G$3,ItemizedExpenses[วันที่ในใบแจ้งหนี้],\"<=\"&G$4)+SUMIFS(อื่นๆ[ยอดเงินเช็ค],อื่นๆ[รหัส G/L],MonthlyExpensesSummary[[#This Row],[รหัส G/L]],อื่นๆ[วันที่เริ่มขอเช็ค],\">=\"&DATEVALUE(\" 1 \"&MonthlyExpensesSummary[[#Headers],[เมษายน]]&_YEAR),อื่นๆ[วันที่เริ่มขอเช็ค],\"<=\"&G$4)","v":{"v":0,"d":"฿0.00"}},{"$f":"SUMIFS(ItemizedExpenses[ยอดเงินเช็ค],ItemizedExpenses[รหัส G/L],MonthlyExpensesSummary[[#This Row],[รหัส G/L]],ItemizedExpenses[วันที่ในใบแจ้งหนี้],\">=\"&H$3,ItemizedExpenses[วันที่ในใบแจ้งหนี้],\"<=\"&H$4)+SUMIFS(อื่นๆ[ยอดเงินเช็ค],อื่นๆ[รหัส G/L],MonthlyExpensesSummary[[#This Row],[รหัส G/L]],อื่นๆ[วันที่เริ่มขอเช็ค],\">=\"&DATEVALUE(\" 1 \"&MonthlyExpensesSummary[[#Headers],[พฤษภาคม]]&_YEAR),อื่นๆ[วันที่เริ่มขอเช็ค],\"<=\"&H$4)","v":{"v":0,"d":"฿0.00"}},{"$f":"SUMIFS(ItemizedExpenses[ยอดเงินเช็ค],ItemizedExpenses[รหัส G/L],MonthlyExpensesSummary[[#This Row],[รหัส G/L]],ItemizedExpenses[วันที่ในใบแจ้งหนี้],\">=\"&I$3,ItemizedExpenses[วันที่ในใบแจ้งหนี้],\"<=\"&I$4)+SUMIFS(อื่นๆ[ยอดเงินเช็ค],อื่นๆ[รหัส G/L],MonthlyExpensesSummary[[#This Row],[รหัส G/L]],อื่นๆ[วันที่เริ่มขอเช็ค],\">=\"&DATEVALUE(\" 1 \"&MonthlyExpensesSummary[[#Headers],[มิถุนายน]]&_YEAR),อื่นๆ[วันที่เริ่มขอเช็ค],\"<=\"&I$4)","v":{"v":0,"d":"฿0.00"}},{"$f":"SUMIFS(ItemizedExpenses[ยอดเงินเช็ค],ItemizedExpenses[รหัส G/L],MonthlyExpensesSummary[[#This Row],[รหัส G/L]],ItemizedExpenses[วันที่ในใบแจ้งหนี้],\">=\"&J$3,ItemizedExpenses[วันที่ในใบแจ้งหนี้],\"<=\"&J$4)+SUMIFS(อื่นๆ[ยอดเงินเช็ค],อื่นๆ[รหัส G/L],MonthlyExpensesSummary[[#This Row],[รหัส G/L]],อื่นๆ[วันที่เริ่มขอเช็ค],\">=\"&DATEVALUE(\" 1 \"&MonthlyExpensesSummary[[#Headers],[กรกฎาคม]]&_YEAR),อื่นๆ[วันที่เริ่มขอเช็ค],\"<=\"&J$4)","v":{"v":0,"d":"฿0.00"}},{"$f":"SUMIFS(ItemizedExpenses[ยอดเงินเช็ค],ItemizedExpenses[รหัส G/L],MonthlyExpensesSummary[[#This Row],[รหัส G/L]],ItemizedExpenses[วันที่ในใบแจ้งหนี้],\">=\"&K$3,ItemizedExpenses[วันที่ในใบแจ้งหนี้],\"<=\"&K$4)+SUMIFS(อื่นๆ[ยอดเงินเช็ค],อื่นๆ[รหัส G/L],MonthlyExpensesSummary[[#This Row],[รหัส G/L]],อื่นๆ[วันที่เริ่มขอเช็ค],\">=\"&DATEVALUE(\" 1 \"&MonthlyExpensesSummary[[#Headers],[สิงหาคม]]&_YEAR),อื่นๆ[วันที่เริ่มขอเช็ค],\"<=\"&K$4)","v":{"v":0,"d":"฿0.00"}},{"$f":"SUMIFS(ItemizedExpenses[ยอดเงินเช็ค],ItemizedExpenses[รหัส G/L],MonthlyExpensesSummary[[#This Row],[รหัส G/L]],ItemizedExpenses[วันที่ในใบแจ้งหนี้],\">=\"&L$3,ItemizedExpenses[วันที่ในใบแจ้งหนี้],\"<=\"&L$4)+SUMIFS(อื่นๆ[ยอดเงินเช็ค],อื่นๆ[รหัส G/L],MonthlyExpensesSummary[[#This Row],[รหัส G/L]],อื่นๆ[วันที่เริ่มขอเช็ค],\">=\"&DATEVALUE(\" 1 \"&MonthlyExpensesSummary[[#Headers],[กันยายน]]&_YEAR),อื่นๆ[วันที่เริ่มขอเช็ค],\"<=\"&L$4)","v":{"v":0,"d":"฿0.00"}},{"$f":"SUMIFS(ItemizedExpenses[ยอดเงินเช็ค],ItemizedExpenses[รหัส G/L],MonthlyExpensesSummary[[#This Row],[รหัส G/L]],ItemizedExpenses[วันที่ในใบแจ้งหนี้],\">=\"&M$3,ItemizedExpenses[วันที่ในใบแจ้งหนี้],\"<=\"&M$4)+SUMIFS(อื่นๆ[ยอดเงินเช็ค],อื่นๆ[รหัส G/L],MonthlyExpensesSummary[[#This Row],[รหัส G/L]],อื่นๆ[วันที่เริ่มขอเช็ค],\">=\"&DATEVALUE(\" 1 \"&MonthlyExpensesSummary[[#Headers],[ตุลาคม]]&_YEAR),อื่นๆ[วันที่เริ่มขอเช็ค],\"<=\"&M$4)","v":{"v":0,"d":"฿0.00"}},{"$f":"SUMIFS(ItemizedExpenses[ยอดเงินเช็ค],ItemizedExpenses[รหัส G/L],MonthlyExpensesSummary[[#This Row],[รหัส G/L]],ItemizedExpenses[วันที่ในใบแจ้งหนี้],\">=\"&N$3,ItemizedExpenses[วันที่ในใบแจ้งหนี้],\"<=\"&N$4)+SUMIFS(อื่นๆ[ยอดเงินเช็ค],อื่นๆ[รหัส G/L],MonthlyExpensesSummary[[#This Row],[รหัส G/L]],อื่นๆ[วันที่เริ่มขอเช็ค],\">=\"&DATEVALUE(\" 1 \"&MonthlyExpensesSummary[[#Headers],[พฤศจิกายน]]&_YEAR),อื่นๆ[วันที่เริ่มขอเช็ค],\"<=\"&N$4)","v":{"v":0,"d":"฿0.00"}},{"$f":"SUMIFS(ItemizedExpenses[ยอดเงินเช็ค],ItemizedExpenses[รหัส G/L],MonthlyExpensesSummary[[#This Row],[รหัส G/L]],ItemizedExpenses[วันที่ในใบแจ้งหนี้],\">=\"&O$3,ItemizedExpenses[วันที่ในใบแจ้งหนี้],\"<=\"&O$4)+SUMIFS(อื่นๆ[ยอดเงินเช็ค],อื่นๆ[รหัส G/L],MonthlyExpensesSummary[[#This Row],[รหัส G/L]],อื่นๆ[วันที่เริ่มขอเช็ค],\">=\"&DATEVALUE(\" 1 \"&MonthlyExpensesSummary[[#Headers],[ธันวาคม]]&_YEAR),อื่นๆ[วันที่เริ่มขอเช็ค],\"<=\"&O$4)","v":{"v":0,"d":"฿0.00"}},{"$f":"SUM(MonthlyExpensesSummary[[#This Row],[มกราคม]:[ธันวาคม]])","v":{"v":0,"d":"฿0.00"}}]
[null,2000,"อุปกรณ์ในสำนักงาน",{"$f":"SUMIFS(ItemizedExpenses[ยอดเงินเช็ค],ItemizedExpenses[รหัส G/L],MonthlyExpensesSummary[[#This Row],[รหัส G/L]],ItemizedExpenses[วันที่ในใบแจ้งหนี้],\">=\"&D$3,ItemizedExpenses[วันที่ในใบแจ้งหนี้],\"<=\"&D$4)+SUMIFS(อื่นๆ[ยอดเงินเช็ค],อื่นๆ[รหัส G/L],MonthlyExpensesSummary[[#This Row],[รหัส G/L]],อื่นๆ[วันที่เริ่มขอเช็ค],\">=\"&DATEVALUE(\" 1 \"&MonthlyExpensesSummary[[#Headers],[มกราคม]]&_YEAR),อื่นๆ[วันที่เริ่มขอเช็ค],\"<=\"&D$4)","v":{"v":0,"d":"฿0.00"}},{"$f":"SUMIFS(ItemizedExpenses[ยอดเงินเช็ค],ItemizedExpenses[รหัส G/L],MonthlyExpensesSummary[[#This Row],[รหัส G/L]],ItemizedExpenses[วันที่ในใบแจ้งหนี้],\">=\"&E$3,ItemizedExpenses[วันที่ในใบแจ้งหนี้],\"<=\"&E$4)+SUMIFS(อื่นๆ[ยอดเงินเช็ค],อื่นๆ[รหัส G/L],MonthlyExpensesSummary[[#This Row],[รหัส G/L]],อื่นๆ[วันที่เริ่มขอเช็ค],\">=\"&DATEVALUE(\" 1 \"&MonthlyExpensesSummary[[#Headers],[กุมภาพันธ์]]&_YEAR),อื่นๆ[วันที่เริ่มขอเช็ค],\"<=\"&E$4)","v":{"v":0,"d":"฿0.00"}},{"$f":"SUMIFS(ItemizedExpenses[ยอดเงินเช็ค],ItemizedExpenses[รหัส G/L],MonthlyExpensesSummary[[#This Row],[รหัส G/L]],ItemizedExpenses[วันที่ในใบแจ้งหนี้],\">=\"&F$3,ItemizedExpenses[วันที่ในใบแจ้งหนี้],\"<=\"&F$4)+SUMIFS(อื่นๆ[ยอดเงินเช็ค],อื่นๆ[รหัส G/L],MonthlyExpensesSummary[[#This Row],[รหัส G/L]],อื่นๆ[วันที่เริ่มขอเช็ค],\">=\"&DATEVALUE(\" 1 \"&MonthlyExpensesSummary[[#Headers],[มีนาคม]]&_YEAR),อื่นๆ[วันที่เริ่มขอเช็ค],\"<=\"&F$4)","v":{"v":0,"d":"฿0.00"}},{"$f":"SUMIFS(ItemizedExpenses[ยอดเงินเช็ค],ItemizedExpenses[รหัส G/L],MonthlyExpensesSummary[[#This Row],[รหัส G/L]],ItemizedExpenses[วันที่ในใบแจ้งหนี้],\">=\"&G$3,ItemizedExpenses[วันที่ในใบแจ้งหนี้],\"<=\"&G$4)+SUMIFS(อื่นๆ[ยอดเงินเช็ค],อื่นๆ[รหัส G/L],MonthlyExpensesSummary[[#This Row],[รหัส G/L]],อื่นๆ[วันที่เริ่มขอเช็ค],\">=\"&DATEVALUE(\" 1 \"&MonthlyExpensesSummary[[#Headers],[เมษายน]]&_YEAR),อื่นๆ[วันที่เริ่มขอเช็ค],\"<=\"&G$4)","v":{"v":0,"d":"฿0.00"}},{"$f":"SUMIFS(ItemizedExpenses[ยอดเงินเช็ค],ItemizedExpenses[รหัส G/L],MonthlyExpensesSummary[[#This Row],[รหัส G/L]],ItemizedExpenses[วันที่ในใบแจ้งหนี้],\">=\"&H$3,ItemizedExpenses[วันที่ในใบแจ้งหนี้],\"<=\"&H$4)+SUMIFS(อื่นๆ[ยอดเงินเช็ค],อื่นๆ[รหัส G/L],MonthlyExpensesSummary[[#This Row],[รหัส G/L]],อื่นๆ[วันที่เริ่มขอเช็ค],\">=\"&DATEVALUE(\" 1 \"&MonthlyExpensesSummary[[#Headers],[พฤษภาคม]]&_YEAR),อื่นๆ[วันที่เริ่มขอเช็ค],\"<=\"&H$4)","v":{"v":0,"d":"฿0.00"}},{"$f":"SUMIFS(ItemizedExpenses[ยอดเงินเช็ค],ItemizedExpenses[รหัส G/L],MonthlyExpensesSummary[[#This Row],[รหัส G/L]],ItemizedExpenses[วันที่ในใบแจ้งหนี้],\">=\"&I$3,ItemizedExpenses[วันที่ในใบแจ้งหนี้],\"<=\"&I$4)+SUMIFS(อื่นๆ[ยอดเงินเช็ค],อื่นๆ[รหัส G/L],MonthlyExpensesSummary[[#This Row],[รหัส G/L]],อื่นๆ[วันที่เริ่มขอเช็ค],\">=\"&DATEVALUE(\" 1 \"&MonthlyExpensesSummary[[#Headers],[มิถุนายน]]&_YEAR),อื่นๆ[วันที่เริ่มขอเช็ค],\"<=\"&I$4)","v":{"v":0,"d":"฿0.00"}},{"$f":"SUMIFS(ItemizedExpenses[ยอดเงินเช็ค],ItemizedExpenses[รหัส G/L],MonthlyExpensesSummary[[#This Row],[รหัส G/L]],ItemizedExpenses[วันที่ในใบแจ้งหนี้],\">=\"&J$3,ItemizedExpenses[วันที่ในใบแจ้งหนี้],\"<=\"&J$4)+SUMIFS(อื่นๆ[ยอดเงินเช็ค],อื่นๆ[รหัส G/L],MonthlyExpensesSummary[[#This Row],[รหัส G/L]],อื่นๆ[วันที่เริ่มขอเช็ค],\">=\"&DATEVALUE(\" 1 \"&MonthlyExpensesSummary[[#Headers],[กรกฎาคม]]&_YEAR),อื่นๆ[วันที่เริ่มขอเช็ค],\"<=\"&J$4)","v":{"v":0,"d":"฿0.00"}},{"$f":"SUMIFS(ItemizedExpenses[ยอดเงินเช็ค],ItemizedExpenses[รหัส G/L],MonthlyExpensesSummary[[#This Row],[รหัส G/L]],ItemizedExpenses[วันที่ในใบแจ้งหนี้],\">=\"&K$3,ItemizedExpenses[วันที่ในใบแจ้งหนี้],\"<=\"&K$4)+SUMIFS(อื่นๆ[ยอดเงินเช็ค],อื่นๆ[รหัส G/L],MonthlyExpensesSummary[[#This Row],[รหัส G/L]],อื่นๆ[วันที่เริ่มขอเช็ค],\">=\"&DATEVALUE(\" 1 \"&MonthlyExpensesSummary[[#Headers],[สิงหาคม]]&_YEAR),อื่นๆ[วันที่เริ่มขอเช็ค],\"<=\"&K$4)","v":{"v":0,"d":"฿0.00"}},{"$f":"SUMIFS(ItemizedExpenses[ยอดเงินเช็ค],ItemizedExpenses[รหัส G/L],MonthlyExpensesSummary[[#This Row],[รหัส G/L]],ItemizedExpenses[วันที่ในใบแจ้งหนี้],\">=\"&L$3,ItemizedExpenses[วันที่ในใบแจ้งหนี้],\"<=\"&L$4)+SUMIFS(อื่นๆ[ยอดเงินเช็ค],อื่นๆ[รหัส G/L],MonthlyExpensesSummary[[#This Row],[รหัส G/L]],อื่นๆ[วันที่เริ่มขอเช็ค],\">=\"&DATEVALUE(\" 1 \"&MonthlyExpensesSummary[[#Headers],[กันยายน]]&_YEAR),อื่นๆ[วันที่เริ่มขอเช็ค],\"<=\"&L$4)","v":{"v":0,"d":"฿0.00"}},{"$f":"SUMIFS(ItemizedExpenses[ยอดเงินเช็ค],ItemizedExpenses[รหัส G/L],MonthlyExpensesSummary[[#This Row],[รหัส G/L]],ItemizedExpenses[วันที่ในใบแจ้งหนี้],\">=\"&M$3,ItemizedExpenses[วันที่ในใบแจ้งหนี้],\"<=\"&M$4)+SUMIFS(อื่นๆ[ยอดเงินเช็ค],อื่นๆ[รหัส G/L],MonthlyExpensesSummary[[#This Row],[รหัส G/L]],อื่นๆ[วันที่เริ่มขอเช็ค],\">=\"&DATEVALUE(\" 1 \"&MonthlyExpensesSummary[[#Headers],[ตุลาคม]]&_YEAR),อื่นๆ[วันที่เริ่มขอเช็ค],\"<=\"&M$4)","v":{"v":0,"d":"฿0.00"}},{"$f":"SUMIFS(ItemizedExpenses[ยอดเงินเช็ค],ItemizedExpenses[รหัส G/L],MonthlyExpensesSummary[[#This Row],[รหัส G/L]],ItemizedExpenses[วันที่ในใบแจ้งหนี้],\">=\"&N$3,ItemizedExpenses[วันที่ในใบแจ้งหนี้],\"<=\"&N$4)+SUMIFS(อื่นๆ[ยอดเงินเช็ค],อื่นๆ[รหัส G/L],MonthlyExpensesSummary[[#This Row],[รหัส G/L]],อื่นๆ[วันที่เริ่มขอเช็ค],\">=\"&DATEVALUE(\" 1 \"&MonthlyExpensesSummary[[#Headers],[พฤศจิกายน]]&_YEAR),อื่นๆ[วันที่เริ่มขอเช็ค],\"<=\"&N$4)","v":{"v":0,"d":"฿0.00"}},{"$f":"SUMIFS(ItemizedExpenses[ยอดเงินเช็ค],ItemizedExpenses[รหัส G/L],MonthlyExpensesSummary[[#This Row],[รหัส G/L]],ItemizedExpenses[วันที่ในใบแจ้งหนี้],\">=\"&O$3,ItemizedExpenses[วันที่ในใบแจ้งหนี้],\"<=\"&O$4)+SUMIFS(อื่นๆ[ยอดเงินเช็ค],อื่นๆ[รหัส G/L],MonthlyExpensesSummary[[#This Row],[รหัส G/L]],อื่นๆ[วันที่เริ่มขอเช็ค],\">=\"&DATEVALUE(\" 1 \"&MonthlyExpensesSummary[[#Headers],[ธันวาคม]]&_YEAR),อื่นๆ[วันที่เริ่มขอเช็ค],\"<=\"&O$4)","v":{"v":0,"d":"฿0.00"}},{"$f":"SUM(MonthlyExpensesSummary[[#This Row],[มกราคม]:[ธันวาคม]])","v":{"v":0,"d":"฿0.00"}}]
[null,3000,"เครื่องพิมพ์",{"$f":"SUMIFS(ItemizedExpenses[ยอดเงินเช็ค],ItemizedExpenses[รหัส G/L],MonthlyExpensesSummary[[#This Row],[รหัส G/L]],ItemizedExpenses[วันที่ในใบแจ้งหนี้],\">=\"&D$3,ItemizedExpenses[วันที่ในใบแจ้งหนี้],\"<=\"&D$4)+SUMIFS(อื่นๆ[ยอดเงินเช็ค],อื่นๆ[รหัส G/L],MonthlyExpensesSummary[[#This Row],[รหัส G/L]],อื่นๆ[วันที่เริ่มขอเช็ค],\">=\"&DATEVALUE(\" 1 \"&MonthlyExpensesSummary[[#Headers],[มกราคม]]&_YEAR),อื่นๆ[วันที่เริ่มขอเช็ค],\"<=\"&D$4)","v":{"v":0,"d":"฿0.00"}},{"$f":"SUMIFS(ItemizedExpenses[ยอดเงินเช็ค],ItemizedExpenses[รหัส G/L],MonthlyExpensesSummary[[#This Row],[รหัส G/L]],ItemizedExpenses[วันที่ในใบแจ้งหนี้],\">=\"&E$3,ItemizedExpenses[วันที่ในใบแจ้งหนี้],\"<=\"&E$4)+SUMIFS(อื่นๆ[ยอดเงินเช็ค],อื่นๆ[รหัส G/L],MonthlyExpensesSummary[[#This Row],[รหัส G/L]],อื่นๆ[วันที่เริ่มขอเช็ค],\">=\"&DATEVALUE(\" 1 \"&MonthlyExpensesSummary[[#Headers],[กุมภาพันธ์]]&_YEAR),อื่นๆ[วันที่เริ่มขอเช็ค],\"<=\"&E$4)","v":{"v":0,"d":"฿0.00"}},{"$f":"SUMIFS(ItemizedExpenses[ยอดเงินเช็ค],ItemizedExpenses[รหัส G/L],MonthlyExpensesSummary[[#This Row],[รหัส G/L]],ItemizedExpenses[วันที่ในใบแจ้งหนี้],\">=\"&F$3,ItemizedExpenses[วันที่ในใบแจ้งหนี้],\"<=\"&F$4)+SUMIFS(อื่นๆ[ยอดเงินเช็ค],อื่นๆ[รหัส G/L],MonthlyExpensesSummary[[#This Row],[รหัส G/L]],อื่นๆ[วันที่เริ่มขอเช็ค],\">=\"&DATEVALUE(\" 1 \"&MonthlyExpensesSummary[[#Headers],[มีนาคม]]&_YEAR),อื่นๆ[วันที่เริ่มขอเช็ค],\"<=\"&F$4)","v":{"v":0,"d":"฿0.00"}},{"$f":"SUMIFS(ItemizedExpenses[ยอดเงินเช็ค],ItemizedExpenses[รหัส G/L],MonthlyExpensesSummary[[#This Row],[รหัส G/L]],ItemizedExpenses[วันที่ในใบแจ้งหนี้],\">=\"&G$3,ItemizedExpenses[วันที่ในใบแจ้งหนี้],\"<=\"&G$4)+SUMIFS(อื่นๆ[ยอดเงินเช็ค],อื่นๆ[รหัส G/L],MonthlyExpensesSummary[[#This Row],[รหัส G/L]],อื่นๆ[วันที่เริ่มขอเช็ค],\">=\"&DATEVALUE(\" 1 \"&MonthlyExpensesSummary[[#Headers],[เมษายน]]&_YEAR),อื่นๆ[วันที่เริ่มขอเช็ค],\"<=\"&G$4)","v":{"v":0,"d":"฿0.00"}},{"$f":"SUMIFS(ItemizedExpenses[ยอดเงินเช็ค],ItemizedExpenses[รหัส G/L],MonthlyExpensesSummary[[#This Row],[รหัส G/L]],ItemizedExpenses[วันที่ในใบแจ้งหนี้],\">=\"&H$3,ItemizedExpenses[วันที่ในใบแจ้งหนี้],\"<=\"&H$4)+SUMIFS(อื่นๆ[ยอดเงินเช็ค],อื่นๆ[รหัส G/L],MonthlyExpensesSummary[[#This Row],[รหัส G/L]],อื่นๆ[วันที่เริ่มขอเช็ค],\">=\"&DATEVALUE(\" 1 \"&MonthlyExpensesSummary[[#Headers],[พฤษภาคม]]&_YEAR),อื่นๆ[วันที่เริ่มขอเช็ค],\"<=\"&H$4)","v":{"v":0,"d":"฿0.00"}},{"$f":"SUMIFS(ItemizedExpenses[ยอดเงินเช็ค],ItemizedExpenses[รหัส G/L],MonthlyExpensesSummary[[#This Row],[รหัส G/L]],ItemizedExpenses[วันที่ในใบแจ้งหนี้],\">=\"&I$3,ItemizedExpenses[วันที่ในใบแจ้งหนี้],\"<=\"&I$4)+SUMIFS(อื่นๆ[ยอดเงินเช็ค],อื่นๆ[รหัส G/L],MonthlyExpensesSummary[[#This Row],[รหัส G/L]],อื่นๆ[วันที่เริ่มขอเช็ค],\">=\"&DATEVALUE(\" 1 \"&MonthlyExpensesSummary[[#Headers],[มิถุนายน]]&_YEAR),อื่นๆ[วันที่เริ่มขอเช็ค],\"<=\"&I$4)","v":{"v":0,"d":"฿0.00"}},{"$f":"SUMIFS(ItemizedExpenses[ยอดเงินเช็ค],ItemizedExpenses[รหัส G/L],MonthlyExpensesSummary[[#This Row],[รหัส G/L]],ItemizedExpenses[วันที่ในใบแจ้งหนี้],\">=\"&J$3,ItemizedExpenses[วันที่ในใบแจ้งหนี้],\"<=\"&J$4)+SUMIFS(อื่นๆ[ยอดเงินเช็ค],อื่นๆ[รหัส G/L],MonthlyExpensesSummary[[#This Row],[รหัส G/L]],อื่นๆ[วันที่เริ่มขอเช็ค],\">=\"&DATEVALUE(\" 1 \"&MonthlyExpensesSummary[[#Headers],[กรกฎาคม]]&_YEAR),อื่นๆ[วันที่เริ่มขอเช็ค],\"<=\"&J$4)","v":{"v":0,"d":"฿0.00"}},{"$f":"SUMIFS(ItemizedExpenses[ยอดเงินเช็ค],ItemizedExpenses[รหัส G/L],MonthlyExpensesSummary[[#This Row],[รหัส G/L]],ItemizedExpenses[วันที่ในใบแจ้งหนี้],\">=\"&K$3,ItemizedExpenses[วันที่ในใบแจ้งหนี้],\"<=\"&K$4)+SUMIFS(อื่นๆ[ยอดเงินเช็ค],อื่นๆ[รหัส G/L],MonthlyExpensesSummary[[#This Row],[รหัส G/L]],อื่นๆ[วันที่เริ่มขอเช็ค],\">=\"&DATEVALUE(\" 1 \"&MonthlyExpensesSummary[[#Headers],[สิงหาคม]]&_YEAR),อื่นๆ[วันที่เริ่มขอเช็ค],\"<=\"&K$4)","v":{"v":0,"d":"฿0.00"}},{"$f":"SUMIFS(ItemizedExpenses[ยอดเงินเช็ค],ItemizedExpenses[รหัส G/L],MonthlyExpensesSummary[[#This Row],[รหัส G/L]],ItemizedExpenses[วันที่ในใบแจ้งหนี้],\">=\"&L$3,ItemizedExpenses[วันที่ในใบแจ้งหนี้],\"<=\"&L$4)+SUMIFS(อื่นๆ[ยอดเงินเช็ค],อื่นๆ[รหัส G/L],MonthlyExpensesSummary[[#This Row],[รหัส G/L]],อื่นๆ[วันที่เริ่มขอเช็ค],\">=\"&DATEVALUE(\" 1 \"&MonthlyExpensesSummary[[#Headers],[กันยายน]]&_YEAR),อื่นๆ[วันที่เริ่มขอเช็ค],\"<=\"&L$4)","v":{"v":0,"d":"฿0.00"}},{"$f":"SUMIFS(ItemizedExpenses[ยอดเงินเช็ค],ItemizedExpenses[รหัส G/L],MonthlyExpensesSummary[[#This Row],[รหัส G/L]],ItemizedExpenses[วันที่ในใบแจ้งหนี้],\">=\"&M$3,ItemizedExpenses[วันที่ในใบแจ้งหนี้],\"<=\"&M$4)+SUMIFS(อื่นๆ[ยอดเงินเช็ค],อื่นๆ[รหัส G/L],MonthlyExpensesSummary[[#This Row],[รหัส G/L]],อื่นๆ[วันที่เริ่มขอเช็ค],\">=\"&DATEVALUE(\" 1 \"&MonthlyExpensesSummary[[#Headers],[ตุลาคม]]&_YEAR),อื่นๆ[วันที่เริ่มขอเช็ค],\"<=\"&M$4)","v":{"v":0,"d":"฿0.00"}},{"$f":"SUMIFS(ItemizedExpenses[ยอดเงินเช็ค],ItemizedExpenses[รหัส G/L],MonthlyExpensesSummary[[#This Row],[รหัส G/L]],ItemizedExpenses[วันที่ในใบแจ้งหนี้],\">=\"&N$3,ItemizedExpenses[วันที่ในใบแจ้งหนี้],\"<=\"&N$4)+SUMIFS(อื่นๆ[ยอดเงินเช็ค],อื่นๆ[รหัส G/L],MonthlyExpensesSummary[[#This Row],[รหัส G/L]],อื่นๆ[วันที่เริ่มขอเช็ค],\">=\"&DATEVALUE(\" 1 \"&MonthlyExpensesSummary[[#Headers],[พฤศจิกายน]]&_YEAR),อื่นๆ[วันที่เริ่มขอเช็ค],\"<=\"&N$4)","v":{"v":0,"d":"฿0.00"}},{"$f":"SUMIFS(ItemizedExpenses[ยอดเงินเช็ค],ItemizedExpenses[รหัส G/L],MonthlyExpensesSummary[[#This Row],[รหัส G/L]],ItemizedExpenses[วันที่ในใบแจ้งหนี้],\">=\"&O$3,ItemizedExpenses[วันที่ในใบแจ้งหนี้],\"<=\"&O$4)+SUMIFS(อื่นๆ[ยอดเงินเช็ค],อื่นๆ[รหัส G/L],MonthlyExpensesSummary[[#This Row],[รหัส G/L]],อื่นๆ[วันที่เริ่มขอเช็ค],\">=\"&DATEVALUE(\" 1 \"&MonthlyExpensesSummary[[#Headers],[ธันวาคม]]&_YEAR),อื่นๆ[วันที่เริ่มขอเช็ค],\"<=\"&O$4)","v":{"v":0,"d":"฿0.00"}},{"$f":"SUM(MonthlyExpensesSummary[[#This Row],[มกราคม]:[ธันวาคม]])","v":{"v":0,"d":"฿0.00"}}]
[null,4000,"ต้นทุนเซิร์ฟเวอร์",{"$f":"SUMIFS(ItemizedExpenses[ยอดเงินเช็ค],ItemizedExpenses[รหัส G/L],MonthlyExpensesSummary[[#This Row],[รหัส G/L]],ItemizedExpenses[วันที่ในใบแจ้งหนี้],\">=\"&D$3,ItemizedExpenses[วันที่ในใบแจ้งหนี้],\"<=\"&D$4)+SUMIFS(อื่นๆ[ยอดเงินเช็ค],อื่นๆ[รหัส G/L],MonthlyExpensesSummary[[#This Row],[รหัส G/L]],อื่นๆ[วันที่เริ่มขอเช็ค],\">=\"&DATEVALUE(\" 1 \"&MonthlyExpensesSummary[[#Headers],[มกราคม]]&_YEAR),อื่นๆ[วันที่เริ่มขอเช็ค],\"<=\"&D$4)","v":{"v":0,"d":"฿0.00"}},{"$f":"SUMIFS(ItemizedExpenses[ยอดเงินเช็ค],ItemizedExpenses[รหัส G/L],MonthlyExpensesSummary[[#This Row],[รหัส G/L]],ItemizedExpenses[วันที่ในใบแจ้งหนี้],\">=\"&E$3,ItemizedExpenses[วันที่ในใบแจ้งหนี้],\"<=\"&E$4)+SUMIFS(อื่นๆ[ยอดเงินเช็ค],อื่นๆ[รหัส G/L],MonthlyExpensesSummary[[#This Row],[รหัส G/L]],อื่นๆ[วันที่เริ่มขอเช็ค],\">=\"&DATEVALUE(\" 1 \"&MonthlyExpensesSummary[[#Headers],[กุมภาพันธ์]]&_YEAR),อื่นๆ[วันที่เริ่มขอเช็ค],\"<=\"&E$4)","v":{"v":0,"d":"฿0.00"}},{"$f":"SUMIFS(ItemizedExpenses[ยอดเงินเช็ค],ItemizedExpenses[รหัส G/L],MonthlyExpensesSummary[[#This Row],[รหัส G/L]],ItemizedExpenses[วันที่ในใบแจ้งหนี้],\">=\"&F$3,ItemizedExpenses[วันที่ในใบแจ้งหนี้],\"<=\"&F$4)+SUMIFS(อื่นๆ[ยอดเงินเช็ค],อื่นๆ[รหัส G/L],MonthlyExpensesSummary[[#This Row],[รหัส G/L]],อื่นๆ[วันที่เริ่มขอเช็ค],\">=\"&DATEVALUE(\" 1 \"&MonthlyExpensesSummary[[#Headers],[มีนาคม]]&_YEAR),อื่นๆ[วันที่เริ่มขอเช็ค],\"<=\"&F$4)","v":{"v":0,"d":"฿0.00"}},{"$f":"SUMIFS(ItemizedExpenses[ยอดเงินเช็ค],ItemizedExpenses[รหัส G/L],MonthlyExpensesSummary[[#This Row],[รหัส G/L]],ItemizedExpenses[วันที่ในใบแจ้งหนี้],\">=\"&G$3,ItemizedExpenses[วันที่ในใบแจ้งหนี้],\"<=\"&G$4)+SUMIFS(อื่นๆ[ยอดเงินเช็ค],อื่นๆ[รหัส G/L],MonthlyExpensesSummary[[#This Row],[รหัส G/L]],อื่นๆ[วันที่เริ่มขอเช็ค],\">=\"&DATEVALUE(\" 1 \"&MonthlyExpensesSummary[[#Headers],[เมษายน]]&_YEAR),อื่นๆ[วันที่เริ่มขอเช็ค],\"<=\"&G$4)","v":{"v":0,"d":"฿0.00"}},{"$f":"SUMIFS(ItemizedExpenses[ยอดเงินเช็ค],ItemizedExpenses[รหัส G/L],MonthlyExpensesSummary[[#This Row],[รหัส G/L]],ItemizedExpenses[วันที่ในใบแจ้งหนี้],\">=\"&H$3,ItemizedExpenses[วันที่ในใบแจ้งหนี้],\"<=\"&H$4)+SUMIFS(อื่นๆ[ยอดเงินเช็ค],อื่นๆ[รหัส G/L],MonthlyExpensesSummary[[#This Row],[รหัส G/L]],อื่นๆ[วันที่เริ่มขอเช็ค],\">=\"&DATEVALUE(\" 1 \"&MonthlyExpensesSummary[[#Headers],[พฤษภาคม]]&_YEAR),อื่นๆ[วันที่เริ่มขอเช็ค],\"<=\"&H$4)","v":{"v":0,"d":"฿0.00"}},{"$f":"SUMIFS(ItemizedExpenses[ยอดเงินเช็ค],ItemizedExpenses[รหัส G/L],MonthlyExpensesSummary[[#This Row],[รหัส G/L]],ItemizedExpenses[วันที่ในใบแจ้งหนี้],\">=\"&I$3,ItemizedExpenses[วันที่ในใบแจ้งหนี้],\"<=\"&I$4)+SUMIFS(อื่นๆ[ยอดเงินเช็ค],อื่นๆ[รหัส G/L],MonthlyExpensesSummary[[#This Row],[รหัส G/L]],อื่นๆ[วันที่เริ่มขอเช็ค],\">=\"&DATEVALUE(\" 1 \"&MonthlyExpensesSummary[[#Headers],[มิถุนายน]]&_YEAR),อื่นๆ[วันที่เริ่มขอเช็ค],\"<=\"&I$4)","v":{"v":0,"d":"฿0.00"}},{"$f":"SUMIFS(ItemizedExpenses[ยอดเงินเช็ค],ItemizedExpenses[รหัส G/L],MonthlyExpensesSummary[[#This Row],[รหัส G/L]],ItemizedExpenses[วันที่ในใบแจ้งหนี้],\">=\"&J$3,ItemizedExpenses[วันที่ในใบแจ้งหนี้],\"<=\"&J$4)+SUMIFS(อื่นๆ[ยอดเงินเช็ค],อื่นๆ[รหัส G/L],MonthlyExpensesSummary[[#This Row],[รหัส G/L]],อื่นๆ[วันที่เริ่มขอเช็ค],\">=\"&DATEVALUE(\" 1 \"&MonthlyExpensesSummary[[#Headers],[กรกฎาคม]]&_YEAR),อื่นๆ[วันที่เริ่มขอเช็ค],\"<=\"&J$4)","v":{"v":0,"d":"฿0.00"}},{"$f":"SUMIFS(ItemizedExpenses[ยอดเงินเช็ค],ItemizedExpenses[รหัส G/L],MonthlyExpensesSummary[[#This Row],[รหัส G/L]],ItemizedExpenses[วันที่ในใบแจ้งหนี้],\">=\"&K$3,ItemizedExpenses[วันที่ในใบแจ้งหนี้],\"<=\"&K$4)+SUMIFS(อื่นๆ[ยอดเงินเช็ค],อื่นๆ[รหัส G/L],MonthlyExpensesSummary[[#This Row],[รหัส G/L]],อื่นๆ[วันที่เริ่มขอเช็ค],\">=\"&DATEVALUE(\" 1 \"&MonthlyExpensesSummary[[#Headers],[สิงหาคม]]&_YEAR),อื่นๆ[วันที่เริ่มขอเช็ค],\"<=\"&K$4)","v":{"v":0,"d":"฿0.00"}},{"$f":"SUMIFS(ItemizedExpenses[ยอดเงินเช็ค],ItemizedExpenses[รหัส G/L],MonthlyExpensesSummary[[#This Row],[รหัส G/L]],ItemizedExpenses[วันที่ในใบแจ้งหนี้],\">=\"&L$3,ItemizedExpenses[วันที่ในใบแจ้งหนี้],\"<=\"&L$4)+SUMIFS(อื่นๆ[ยอดเงินเช็ค],อื่นๆ[รหัส G/L],MonthlyExpensesSummary[[#This Row],[รหัส G/L]],อื่นๆ[วันที่เริ่มขอเช็ค],\">=\"&DATEVALUE(\" 1 \"&MonthlyExpensesSummary[[#Headers],[กันยายน]]&_YEAR),อื่นๆ[วันที่เริ่มขอเช็ค],\"<=\"&L$4)","v":{"v":0,"d":"฿0.00"}},{"$f":"SUMIFS(ItemizedExpenses[ยอดเงินเช็ค],ItemizedExpenses[รหัส G/L],MonthlyExpensesSummary[[#This Row],[รหัส G/L]],ItemizedExpenses[วันที่ในใบแจ้งหนี้],\">=\"&M$3,ItemizedExpenses[วันที่ในใบแจ้งหนี้],\"<=\"&M$4)+SUMIFS(อื่นๆ[ยอดเงินเช็ค],อื่นๆ[รหัส G/L],MonthlyExpensesSummary[[#This Row],[รหัส G/L]],อื่นๆ[วันที่เริ่มขอเช็ค],\">=\"&DATEVALUE(\" 1 \"&MonthlyExpensesSummary[[#Headers],[ตุลาคม]]&_YEAR),อื่นๆ[วันที่เริ่มขอเช็ค],\"<=\"&M$4)","v":{"v":0,"d":"฿0.00"}},{"$f":"SUMIFS(ItemizedExpenses[ยอดเงินเช็ค],ItemizedExpenses[รหัส G/L],MonthlyExpensesSummary[[#This Row],[รหัส G/L]],ItemizedExpenses[วันที่ในใบแจ้งหนี้],\">=\"&N$3,ItemizedExpenses[วันที่ในใบแจ้งหนี้],\"<=\"&N$4)+SUMIFS(อื่นๆ[ยอดเงินเช็ค],อื่นๆ[รหัส G/L],MonthlyExpensesSummary[[#This Row],[รหัส G/L]],อื่นๆ[วันที่เริ่มขอเช็ค],\">=\"&DATEVALUE(\" 1 \"&MonthlyExpensesSummary[[#Headers],[พฤศจิกายน]]&_YEAR),อื่นๆ[วันที่เริ่มขอเช็ค],\"<=\"&N$4)","v":{"v":0,"d":"฿0.00"}},{"$f":"SUMIFS(ItemizedExpenses[ยอดเงินเช็ค],ItemizedExpenses[รหัส G/L],MonthlyExpensesSummary[[#This Row],[รหัส G/L]],ItemizedExpenses[วันที่ในใบแจ้งหนี้],\">=\"&O$3,ItemizedExpenses[วันที่ในใบแจ้งหนี้],\"<=\"&O$4)+SUMIFS(อื่นๆ[ยอดเงินเช็ค],อื่นๆ[รหัส G/L],MonthlyExpensesSummary[[#This Row],[รหัส G/L]],อื่นๆ[วันที่เริ่มขอเช็ค],\">=\"&DATEVALUE(\" 1 \"&MonthlyExpensesSummary[[#Headers],[ธันวาคม]]&_YEAR),อื่นๆ[วันที่เริ่มขอเช็ค],\"<=\"&O$4)","v":{"v":0,"d":"฿0.00"}},{"$f":"SUM(MonthlyExpensesSummary[[#This Row],[มกราคม]:[ธันวาคม]])","v":{"v":0,"d":"฿0.00"}}]
[null,5000,"วัสดุ",{"$f":"SUMIFS(ItemizedExpenses[ยอดเงินเช็ค],ItemizedExpenses[รหัส G/L],MonthlyExpensesSummary[[#This Row],[รหัส G/L]],ItemizedExpenses[วันที่ในใบแจ้งหนี้],\">=\"&D$3,ItemizedExpenses[วันที่ในใบแจ้งหนี้],\"<=\"&D$4)+SUMIFS(อื่นๆ[ยอดเงินเช็ค],อื่นๆ[รหัส G/L],MonthlyExpensesSummary[[#This Row],[รหัส G/L]],อื่นๆ[วันที่เริ่มขอเช็ค],\">=\"&DATEVALUE(\" 1 \"&MonthlyExpensesSummary[[#Headers],[มกราคม]]&_YEAR),อื่นๆ[วันที่เริ่มขอเช็ค],\"<=\"&D$4)","v":{"v":0,"d":"฿0.00"}},{"$f":"SUMIFS(ItemizedExpenses[ยอดเงินเช็ค],ItemizedExpenses[รหัส G/L],MonthlyExpensesSummary[[#This Row],[รหัส G/L]],ItemizedExpenses[วันที่ในใบแจ้งหนี้],\">=\"&E$3,ItemizedExpenses[วันที่ในใบแจ้งหนี้],\"<=\"&E$4)+SUMIFS(อื่นๆ[ยอดเงินเช็ค],อื่นๆ[รหัส G/L],MonthlyExpensesSummary[[#This Row],[รหัส G/L]],อื่นๆ[วันที่เริ่มขอเช็ค],\">=\"&DATEVALUE(\" 1 \"&MonthlyExpensesSummary[[#Headers],[กุมภาพันธ์]]&_YEAR),อื่นๆ[วันที่เริ่มขอเช็ค],\"<=\"&E$4)","v":{"v":0,"d":"฿0.00"}},{"$f":"SUMIFS(ItemizedExpenses[ยอดเงินเช็ค],ItemizedExpenses[รหัส G/L],MonthlyExpensesSummary[[#This Row],[รหัส G/L]],ItemizedExpenses[วันที่ในใบแจ้งหนี้],\">=\"&F$3,ItemizedExpenses[วันที่ในใบแจ้งหนี้],\"<=\"&F$4)+SUMIFS(อื่นๆ[ยอดเงินเช็ค],อื่นๆ[รหัส G/L],MonthlyExpensesSummary[[#This Row],[รหัส G/L]],อื่นๆ[วันที่เริ่มขอเช็ค],\">=\"&DATEVALUE(\" 1 \"&MonthlyExpensesSummary[[#Headers],[มีนาคม]]&_YEAR),อื่นๆ[วันที่เริ่มขอเช็ค],\"<=\"&F$4)","v":{"v":0,"d":"฿0.00"}},{"$f":"SUMIFS(ItemizedExpenses[ยอดเงินเช็ค],ItemizedExpenses[รหัส G/L],MonthlyExpensesSummary[[#This Row],[รหัส G/L]],ItemizedExpenses[วันที่ในใบแจ้งหนี้],\">=\"&G$3,ItemizedExpenses[วันที่ในใบแจ้งหนี้],\"<=\"&G$4)+SUMIFS(อื่นๆ[ยอดเงินเช็ค],อื่นๆ[รหัส G/L],MonthlyExpensesSummary[[#This Row],[รหัส G/L]],อื่นๆ[วันที่เริ่มขอเช็ค],\">=\"&DATEVALUE(\" 1 \"&MonthlyExpensesSummary[[#Headers],[เมษายน]]&_YEAR),อื่นๆ[วันที่เริ่มขอเช็ค],\"<=\"&G$4)","v":{"v":0,"d":"฿0.00"}},{"$f":"SUMIFS(ItemizedExpenses[ยอดเงินเช็ค],ItemizedExpenses[รหัส G/L],MonthlyExpensesSummary[[#This Row],[รหัส G/L]],ItemizedExpenses[วันที่ในใบแจ้งหนี้],\">=\"&H$3,ItemizedExpenses[วันที่ในใบแจ้งหนี้],\"<=\"&H$4)+SUMIFS(อื่นๆ[ยอดเงินเช็ค],อื่นๆ[รหัส G/L],MonthlyExpensesSummary[[#This Row],[รหัส G/L]],อื่นๆ[วันที่เริ่มขอเช็ค],\">=\"&DATEVALUE(\" 1 \"&MonthlyExpensesSummary[[#Headers],[พฤษภาคม]]&_YEAR),อื่นๆ[วันที่เริ่มขอเช็ค],\"<=\"&H$4)","v":{"v":0,"d":"฿0.00"}},{"$f":"SUMIFS(ItemizedExpenses[ยอดเงินเช็ค],ItemizedExpenses[รหัส G/L],MonthlyExpensesSummary[[#This Row],[รหัส G/L]],ItemizedExpenses[วันที่ในใบแจ้งหนี้],\">=\"&I$3,ItemizedExpenses[วันที่ในใบแจ้งหนี้],\"<=\"&I$4)+SUMIFS(อื่นๆ[ยอดเงินเช็ค],อื่นๆ[รหัส G/L],MonthlyExpensesSummary[[#This Row],[รหัส G/L]],อื่นๆ[วันที่เริ่มขอเช็ค],\">=\"&DATEVALUE(\" 1 \"&MonthlyExpensesSummary[[#Headers],[มิถุนายน]]&_YEAR),อื่นๆ[วันที่เริ่มขอเช็ค],\"<=\"&I$4)","v":{"v":0,"d":"฿0.00"}},{"$f":"SUMIFS(ItemizedExpenses[ยอดเงินเช็ค],ItemizedExpenses[รหัส G/L],MonthlyExpensesSummary[[#This Row],[รหัส G/L]],ItemizedExpenses[วันที่ในใบแจ้งหนี้],\">=\"&J$3,ItemizedExpenses[วันที่ในใบแจ้งหนี้],\"<=\"&J$4)+SUMIFS(อื่นๆ[ยอดเงินเช็ค],อื่นๆ[รหัส G/L],MonthlyExpensesSummary[[#This Row],[รหัส G/L]],อื่นๆ[วันที่เริ่มขอเช็ค],\">=\"&DATEVALUE(\" 1 \"&MonthlyExpensesSummary[[#Headers],[กรกฎาคม]]&_YEAR),อื่นๆ[วันที่เริ่มขอเช็ค],\"<=\"&J$4)","v":{"v":0,"d":"฿0.00"}},{"$f":"SUMIFS(ItemizedExpenses[ยอดเงินเช็ค],ItemizedExpenses[รหัส G/L],MonthlyExpensesSummary[[#This Row],[รหัส G/L]],ItemizedExpenses[วันที่ในใบแจ้งหนี้],\">=\"&K$3,ItemizedExpenses[วันที่ในใบแจ้งหนี้],\"<=\"&K$4)+SUMIFS(อื่นๆ[ยอดเงินเช็ค],อื่นๆ[รหัส G/L],MonthlyExpensesSummary[[#This Row],[รหัส G/L]],อื่นๆ[วันที่เริ่มขอเช็ค],\">=\"&DATEVALUE(\" 1 \"&MonthlyExpensesSummary[[#Headers],[สิงหาคม]]&_YEAR),อื่นๆ[วันที่เริ่มขอเช็ค],\"<=\"&K$4)","v":{"v":0,"d":"฿0.00"}},{"$f":"SUMIFS(ItemizedExpenses[ยอดเงินเช็ค],ItemizedExpenses[รหัส G/L],MonthlyExpensesSummary[[#This Row],[รหัส G/L]],ItemizedExpenses[วันที่ในใบแจ้งหนี้],\">=\"&L$3,ItemizedExpenses[วันที่ในใบแจ้งหนี้],\"<=\"&L$4)+SUMIFS(อื่นๆ[ยอดเงินเช็ค],อื่นๆ[รหัส G/L],MonthlyExpensesSummary[[#This Row],[รหัส G/L]],อื่นๆ[วันที่เริ่มขอเช็ค],\">=\"&DATEVALUE(\" 1 \"&MonthlyExpensesSummary[[#Headers],[กันยายน]]&_YEAR),อื่นๆ[วันที่เริ่มขอเช็ค],\"<=\"&L$4)","v":{"v":0,"d":"฿0.00"}},{"$f":"SUMIFS(ItemizedExpenses[ยอดเงินเช็ค],ItemizedExpenses[รหัส G/L],MonthlyExpensesSummary[[#This Row],[รหัส G/L]],ItemizedExpenses[วันที่ในใบแจ้งหนี้],\">=\"&M$3,ItemizedExpenses[วันที่ในใบแจ้งหนี้],\"<=\"&M$4)+SUMIFS(อื่นๆ[ยอดเงินเช็ค],อื่นๆ[รหัส G/L],MonthlyExpensesSummary[[#This Row],[รหัส G/L]],อื่นๆ[วันที่เริ่มขอเช็ค],\">=\"&DATEVALUE(\" 1 \"&MonthlyExpensesSummary[[#Headers],[ตุลาคม]]&_YEAR),อื่นๆ[วันที่เริ่มขอเช็ค],\"<=\"&M$4)","v":{"v":0,"d":"฿0.00"}},{"$f":"SUMIFS(ItemizedExpenses[ยอดเงินเช็ค],ItemizedExpenses[รหัส G/L],MonthlyExpensesSummary[[#This Row],[รหัส G/L]],ItemizedExpenses[วันที่ในใบแจ้งหนี้],\">=\"&N$3,ItemizedExpenses[วันที่ในใบแจ้งหนี้],\"<=\"&N$4)+SUMIFS(อื่นๆ[ยอดเงินเช็ค],อื่นๆ[รหัส G/L],MonthlyExpensesSummary[[#This Row],[รหัส G/L]],อื่นๆ[วันที่เริ่มขอเช็ค],\">=\"&DATEVALUE(\" 1 \"&MonthlyExpensesSummary[[#Headers],[พฤศจิกายน]]&_YEAR),อื่นๆ[วันที่เริ่มขอเช็ค],\"<=\"&N$4)","v":{"v":0,"d":"฿0.00"}},{"$f":"SUMIFS(ItemizedExpenses[ยอดเงินเช็ค],ItemizedExpenses[รหัส G/L],MonthlyExpensesSummary[[#This Row],[รหัส G/L]],ItemizedExpenses[วันที่ในใบแจ้งหนี้],\">=\"&O$3,ItemizedExpenses[วันที่ในใบแจ้งหนี้],\"<=\"&O$4)+SUMIFS(อื่นๆ[ยอดเงินเช็ค],อื่นๆ[รหัส G/L],MonthlyExpensesSummary[[#This Row],[รหัส G/L]],อื่นๆ[วันที่เริ่มขอเช็ค],\">=\"&DATEVALUE(\" 1 \"&MonthlyExpensesSummary[[#Headers],[ธันวาคม]]&_YEAR),อื่นๆ[วันที่เริ่มขอเช็ค],\"<=\"&O$4)","v":{"v":0,"d":"฿0.00"}},{"$f":"SUM(MonthlyExpensesSummary[[#This Row],[มกราคม]:[ธันวาคม]])","v":{"v":0,"d":"฿0.00"}}]
[null,6000,"ค่าใช้จ่ายไคลเอ็นต์",{"$f":"SUMIFS(ItemizedExpenses[ยอดเงินเช็ค],ItemizedExpenses[รหัส G/L],MonthlyExpensesSummary[[#This Row],[รหัส G/L]],ItemizedExpenses[วันที่ในใบแจ้งหนี้],\">=\"&D$3,ItemizedExpenses[วันที่ในใบแจ้งหนี้],\"<=\"&D$4)+SUMIFS(อื่นๆ[ยอดเงินเช็ค],อื่นๆ[รหัส G/L],MonthlyExpensesSummary[[#This Row],[รหัส G/L]],อื่นๆ[วันที่เริ่มขอเช็ค],\">=\"&DATEVALUE(\" 1 \"&MonthlyExpensesSummary[[#Headers],[มกราคม]]&_YEAR),อื่นๆ[วันที่เริ่มขอเช็ค],\"<=\"&D$4)","v":{"v":0,"d":"฿0.00"}},{"$f":"SUMIFS(ItemizedExpenses[ยอดเงินเช็ค],ItemizedExpenses[รหัส G/L],MonthlyExpensesSummary[[#This Row],[รหัส G/L]],ItemizedExpenses[วันที่ในใบแจ้งหนี้],\">=\"&E$3,ItemizedExpenses[วันที่ในใบแจ้งหนี้],\"<=\"&E$4)+SUMIFS(อื่นๆ[ยอดเงินเช็ค],อื่นๆ[รหัส G/L],MonthlyExpensesSummary[[#This Row],[รหัส G/L]],อื่นๆ[วันที่เริ่มขอเช็ค],\">=\"&DATEVALUE(\" 1 \"&MonthlyExpensesSummary[[#Headers],[กุมภาพันธ์]]&_YEAR),อื่นๆ[วันที่เริ่มขอเช็ค],\"<=\"&E$4)","v":{"v":0,"d":"฿0.00"}},{"$f":"SUMIFS(ItemizedExpenses[ยอดเงินเช็ค],ItemizedExpenses[รหัส G/L],MonthlyExpensesSummary[[#This Row],[รหัส G/L]],ItemizedExpenses[วันที่ในใบแจ้งหนี้],\">=\"&F$3,ItemizedExpenses[วันที่ในใบแจ้งหนี้],\"<=\"&F$4)+SUMIFS(อื่นๆ[ยอดเงินเช็ค],อื่นๆ[รหัส G/L],MonthlyExpensesSummary[[#This Row],[รหัส G/L]],อื่นๆ[วันที่เริ่มขอเช็ค],\">=\"&DATEVALUE(\" 1 \"&MonthlyExpensesSummary[[#Headers],[มีนาคม]]&_YEAR),อื่นๆ[วันที่เริ่มขอเช็ค],\"<=\"&F$4)","v":{"v":0,"d":"฿0.00"}},{"$f":"SUMIFS(ItemizedExpenses[ยอดเงินเช็ค],ItemizedExpenses[รหัส G/L],MonthlyExpensesSummary[[#This Row],[รหัส G/L]],ItemizedExpenses[วันที่ในใบแจ้งหนี้],\">=\"&G$3,ItemizedExpenses[วันที่ในใบแจ้งหนี้],\"<=\"&G$4)+SUMIFS(อื่นๆ[ยอดเงินเช็ค],อื่นๆ[รหัส G/L],MonthlyExpensesSummary[[#This Row],[รหัส G/L]],อื่นๆ[วันที่เริ่มขอเช็ค],\">=\"&DATEVALUE(\" 1 \"&MonthlyExpensesSummary[[#Headers],[เมษายน]]&_YEAR),อื่นๆ[วันที่เริ่มขอเช็ค],\"<=\"&G$4)","v":{"v":0,"d":"฿0.00"}},{"$f":"SUMIFS(ItemizedExpenses[ยอดเงินเช็ค],ItemizedExpenses[รหัส G/L],MonthlyExpensesSummary[[#This Row],[รหัส G/L]],ItemizedExpenses[วันที่ในใบแจ้งหนี้],\">=\"&H$3,ItemizedExpenses[วันที่ในใบแจ้งหนี้],\"<=\"&H$4)+SUMIFS(อื่นๆ[ยอดเงินเช็ค],อื่นๆ[รหัส G/L],MonthlyExpensesSummary[[#This Row],[รหัส G/L]],อื่นๆ[วันที่เริ่มขอเช็ค],\">=\"&DATEVALUE(\" 1 \"&MonthlyExpensesSummary[[#Headers],[พฤษภาคม]]&_YEAR),อื่นๆ[วันที่เริ่มขอเช็ค],\"<=\"&H$4)","v":{"v":0,"d":"฿0.00"}},{"$f":"SUMIFS(ItemizedExpenses[ยอดเงินเช็ค],ItemizedExpenses[รหัส G/L],MonthlyExpensesSummary[[#This Row],[รหัส G/L]],ItemizedExpenses[วันที่ในใบแจ้งหนี้],\">=\"&I$3,ItemizedExpenses[วันที่ในใบแจ้งหนี้],\"<=\"&I$4)+SUMIFS(อื่นๆ[ยอดเงินเช็ค],อื่นๆ[รหัส G/L],MonthlyExpensesSummary[[#This Row],[รหัส G/L]],อื่นๆ[วันที่เริ่มขอเช็ค],\">=\"&DATEVALUE(\" 1 \"&MonthlyExpensesSummary[[#Headers],[มิถุนายน]]&_YEAR),อื่นๆ[วันที่เริ่มขอเช็ค],\"<=\"&I$4)","v":{"v":0,"d":"฿0.00"}},{"$f":"SUMIFS(ItemizedExpenses[ยอดเงินเช็ค],ItemizedExpenses[รหัส G/L],MonthlyExpensesSummary[[#This Row],[รหัส G/L]],ItemizedExpenses[วันที่ในใบแจ้งหนี้],\">=\"&J$3,ItemizedExpenses[วันที่ในใบแจ้งหนี้],\"<=\"&J$4)+SUMIFS(อื่นๆ[ยอดเงินเช็ค],อื่นๆ[รหัส G/L],MonthlyExpensesSummary[[#This Row],[รหัส G/L]],อื่นๆ[วันที่เริ่มขอเช็ค],\">=\"&DATEVALUE(\" 1 \"&MonthlyExpensesSummary[[#Headers],[กรกฎาคม]]&_YEAR),อื่นๆ[วันที่เริ่มขอเช็ค],\"<=\"&J$4)","v":{"v":0,"d":"฿0.00"}},{"$f":"SUMIFS(ItemizedExpenses[ยอดเงินเช็ค],ItemizedExpenses[รหัส G/L],MonthlyExpensesSummary[[#This Row],[รหัส G/L]],ItemizedExpenses[วันที่ในใบแจ้งหนี้],\">=\"&K$3,ItemizedExpenses[วันที่ในใบแจ้งหนี้],\"<=\"&K$4)+SUMIFS(อื่นๆ[ยอดเงินเช็ค],อื่นๆ[รหัส G/L],MonthlyExpensesSummary[[#This Row],[รหัส G/L]],อื่นๆ[วันที่เริ่มขอเช็ค],\">=\"&DATEVALUE(\" 1 \"&MonthlyExpensesSummary[[#Headers],[สิงหาคม]]&_YEAR),อื่นๆ[วันที่เริ่มขอเช็ค],\"<=\"&K$4)","v":{"v":0,"d":"฿0.00"}},{"$f":"SUMIFS(ItemizedExpenses[ยอดเงินเช็ค],ItemizedExpenses[รหัส G/L],MonthlyExpensesSummary[[#This Row],[รหัส G/L]],ItemizedExpenses[วันที่ในใบแจ้งหนี้],\">=\"&L$3,ItemizedExpenses[วันที่ในใบแจ้งหนี้],\"<=\"&L$4)+SUMIFS(อื่นๆ[ยอดเงินเช็ค],อื่นๆ[รหัส G/L],MonthlyExpensesSummary[[#This Row],[รหัส G/L]],อื่นๆ[วันที่เริ่มขอเช็ค],\">=\"&DATEVALUE(\" 1 \"&MonthlyExpensesSummary[[#Headers],[กันยายน]]&_YEAR),อื่นๆ[วันที่เริ่มขอเช็ค],\"<=\"&L$4)","v":{"v":0,"d":"฿0.00"}},{"$f":"SUMIFS(ItemizedExpenses[ยอดเงินเช็ค],ItemizedExpenses[รหัส G/L],MonthlyExpensesSummary[[#This Row],[รหัส G/L]],ItemizedExpenses[วันที่ในใบแจ้งหนี้],\">=\"&M$3,ItemizedExpenses[วันที่ในใบแจ้งหนี้],\"<=\"&M$4)+SUMIFS(อื่นๆ[ยอดเงินเช็ค],อื่นๆ[รหัส G/L],MonthlyExpensesSummary[[#This Row],[รหัส G/L]],อื่นๆ[วันที่เริ่มขอเช็ค],\">=\"&DATEVALUE(\" 1 \"&MonthlyExpensesSummary[[#Headers],[ตุลาคม]]&_YEAR),อื่นๆ[วันที่เริ่มขอเช็ค],\"<=\"&M$4)","v":{"v":0,"d":"฿0.00"}},{"$f":"SUMIFS(ItemizedExpenses[ยอดเงินเช็ค],ItemizedExpenses[รหัส G/L],MonthlyExpensesSummary[[#This Row],[รหัส G/L]],ItemizedExpenses[วันที่ในใบแจ้งหนี้],\">=\"&N$3,ItemizedExpenses[วันที่ในใบแจ้งหนี้],\"<=\"&N$4)+SUMIFS(อื่นๆ[ยอดเงินเช็ค],อื่นๆ[รหัส G/L],MonthlyExpensesSummary[[#This Row],[รหัส G/L]],อื่นๆ[วันที่เริ่มขอเช็ค],\">=\"&DATEVALUE(\" 1 \"&MonthlyExpensesSummary[[#Headers],[พฤศจิกายน]]&_YEAR),อื่นๆ[วันที่เริ่มขอเช็ค],\"<=\"&N$4)","v":{"v":0,"d":"฿0.00"}},{"$f":"SUMIFS(ItemizedExpenses[ยอดเงินเช็ค],ItemizedExpenses[รหัส G/L],MonthlyExpensesSummary[[#This Row],[รหัส G/L]],ItemizedExpenses[วันที่ในใบแจ้งหนี้],\">=\"&O$3,ItemizedExpenses[วันที่ในใบแจ้งหนี้],\"<=\"&O$4)+SUMIFS(อื่นๆ[ยอดเงินเช็ค],อื่นๆ[รหัส G/L],MonthlyExpensesSummary[[#This Row],[รหัส G/L]],อื่นๆ[วันที่เริ่มขอเช็ค],\">=\"&DATEVALUE(\" 1 \"&MonthlyExpensesSummary[[#Headers],[ธันวาคม]]&_YEAR),อื่นๆ[วันที่เริ่มขอเช็ค],\"<=\"&O$4)","v":{"v":0,"d":"฿0.00"}},{"$f":"SUM(MonthlyExpensesSummary[[#This Row],[มกราคม]:[ธันวาคม]])","v":{"v":0,"d":"฿0.00"}}]
[null,7000,"คอมพิวเตอร์",{"$f":"SUMIFS(ItemizedExpenses[ยอดเงินเช็ค],ItemizedExpenses[รหัส G/L],MonthlyExpensesSummary[[#This Row],[รหัส G/L]],ItemizedExpenses[วันที่ในใบแจ้งหนี้],\">=\"&D$3,ItemizedExpenses[วันที่ในใบแจ้งหนี้],\"<=\"&D$4)+SUMIFS(อื่นๆ[ยอดเงินเช็ค],อื่นๆ[รหัส G/L],MonthlyExpensesSummary[[#This Row],[รหัส G/L]],อื่นๆ[วันที่เริ่มขอเช็ค],\">=\"&DATEVALUE(\" 1 \"&MonthlyExpensesSummary[[#Headers],[มกราคม]]&_YEAR),อื่นๆ[วันที่เริ่มขอเช็ค],\"<=\"&D$4)","v":{"v":0,"d":"฿0.00"}},{"$f":"SUMIFS(ItemizedExpenses[ยอดเงินเช็ค],ItemizedExpenses[รหัส G/L],MonthlyExpensesSummary[[#This Row],[รหัส G/L]],ItemizedExpenses[วันที่ในใบแจ้งหนี้],\">=\"&E$3,ItemizedExpenses[วันที่ในใบแจ้งหนี้],\"<=\"&E$4)+SUMIFS(อื่นๆ[ยอดเงินเช็ค],อื่นๆ[รหัส G/L],MonthlyExpensesSummary[[#This Row],[รหัส G/L]],อื่นๆ[วันที่เริ่มขอเช็ค],\">=\"&DATEVALUE(\" 1 \"&MonthlyExpensesSummary[[#Headers],[กุมภาพันธ์]]&_YEAR),อื่นๆ[วันที่เริ่มขอเช็ค],\"<=\"&E$4)","v":{"v":0,"d":"฿0.00"}},{"$f":"SUMIFS(ItemizedExpenses[ยอดเงินเช็ค],ItemizedExpenses[รหัส G/L],MonthlyExpensesSummary[[#This Row],[รหัส G/L]],ItemizedExpenses[วันที่ในใบแจ้งหนี้],\">=\"&F$3,ItemizedExpenses[วันที่ในใบแจ้งหนี้],\"<=\"&F$4)+SUMIFS(อื่นๆ[ยอดเงินเช็ค],อื่นๆ[รหัส G/L],MonthlyExpensesSummary[[#This Row],[รหัส G/L]],อื่นๆ[วันที่เริ่มขอเช็ค],\">=\"&DATEVALUE(\" 1 \"&MonthlyExpensesSummary[[#Headers],[มีนาคม]]&_YEAR),อื่นๆ[วันที่เริ่มขอเช็ค],\"<=\"&F$4)","v":{"v":0,"d":"฿0.00"}},{"$f":"SUMIFS(ItemizedExpenses[ยอดเงินเช็ค],ItemizedExpenses[รหัส G/L],MonthlyExpensesSummary[[#This Row],[รหัส G/L]],ItemizedExpenses[วันที่ในใบแจ้งหนี้],\">=\"&G$3,ItemizedExpenses[วันที่ในใบแจ้งหนี้],\"<=\"&G$4)+SUMIFS(อื่นๆ[ยอดเงินเช็ค],อื่นๆ[รหัส G/L],MonthlyExpensesSummary[[#This Row],[รหัส G/L]],อื่นๆ[วันที่เริ่มขอเช็ค],\">=\"&DATEVALUE(\" 1 \"&MonthlyExpensesSummary[[#Headers],[เมษายน]]&_YEAR),อื่นๆ[วันที่เริ่มขอเช็ค],\"<=\"&G$4)","v":{"v":0,"d":"฿0.00"}},{"$f":"SUMIFS(ItemizedExpenses[ยอดเงินเช็ค],ItemizedExpenses[รหัส G/L],MonthlyExpensesSummary[[#This Row],[รหัส G/L]],ItemizedExpenses[วันที่ในใบแจ้งหนี้],\">=\"&H$3,ItemizedExpenses[วันที่ในใบแจ้งหนี้],\"<=\"&H$4)+SUMIFS(อื่นๆ[ยอดเงินเช็ค],อื่นๆ[รหัส G/L],MonthlyExpensesSummary[[#This Row],[รหัส G/L]],อื่นๆ[วันที่เริ่มขอเช็ค],\">=\"&DATEVALUE(\" 1 \"&MonthlyExpensesSummary[[#Headers],[พฤษภาคม]]&_YEAR),อื่นๆ[วันที่เริ่มขอเช็ค],\"<=\"&H$4)","v":{"v":0,"d":"฿0.00"}},{"$f":"SUMIFS(ItemizedExpenses[ยอดเงินเช็ค],ItemizedExpenses[รหัส G/L],MonthlyExpensesSummary[[#This Row],[รหัส G/L]],ItemizedExpenses[วันที่ในใบแจ้งหนี้],\">=\"&I$3,ItemizedExpenses[วันที่ในใบแจ้งหนี้],\"<=\"&I$4)+SUMIFS(อื่นๆ[ยอดเงินเช็ค],อื่นๆ[รหัส G/L],MonthlyExpensesSummary[[#This Row],[รหัส G/L]],อื่นๆ[วันที่เริ่มขอเช็ค],\">=\"&DATEVALUE(\" 1 \"&MonthlyExpensesSummary[[#Headers],[มิถุนายน]]&_YEAR),อื่นๆ[วันที่เริ่มขอเช็ค],\"<=\"&I$4)","v":{"v":0,"d":"฿0.00"}},{"$f":"SUMIFS(ItemizedExpenses[ยอดเงินเช็ค],ItemizedExpenses[รหัส G/L],MonthlyExpensesSummary[[#This Row],[รหัส G/L]],ItemizedExpenses[วันที่ในใบแจ้งหนี้],\">=\"&J$3,ItemizedExpenses[วันที่ในใบแจ้งหนี้],\"<=\"&J$4)+SUMIFS(อื่นๆ[ยอดเงินเช็ค],อื่นๆ[รหัส G/L],MonthlyExpensesSummary[[#This Row],[รหัส G/L]],อื่นๆ[วันที่เริ่มขอเช็ค],\">=\"&DATEVALUE(\" 1 \"&MonthlyExpensesSummary[[#Headers],[กรกฎาคม]]&_YEAR),อื่นๆ[วันที่เริ่มขอเช็ค],\"<=\"&J$4)","v":{"v":0,"d":"฿0.00"}},{"$f":"SUMIFS(ItemizedExpenses[ยอดเงินเช็ค],ItemizedExpenses[รหัส G/L],MonthlyExpensesSummary[[#This Row],[รหัส G/L]],ItemizedExpenses[วันที่ในใบแจ้งหนี้],\">=\"&K$3,ItemizedExpenses[วันที่ในใบแจ้งหนี้],\"<=\"&K$4)+SUMIFS(อื่นๆ[ยอดเงินเช็ค],อื่นๆ[รหัส G/L],MonthlyExpensesSummary[[#This Row],[รหัส G/L]],อื่นๆ[วันที่เริ่มขอเช็ค],\">=\"&DATEVALUE(\" 1 \"&MonthlyExpensesSummary[[#Headers],[สิงหาคม]]&_YEAR),อื่นๆ[วันที่เริ่มขอเช็ค],\"<=\"&K$4)","v":{"v":0,"d":"฿0.00"}},{"$f":"SUMIFS(ItemizedExpenses[ยอดเงินเช็ค],ItemizedExpenses[รหัส G/L],MonthlyExpensesSummary[[#This Row],[รหัส G/L]],ItemizedExpenses[วันที่ในใบแจ้งหนี้],\">=\"&L$3,ItemizedExpenses[วันที่ในใบแจ้งหนี้],\"<=\"&L$4)+SUMIFS(อื่นๆ[ยอดเงินเช็ค],อื่นๆ[รหัส G/L],MonthlyExpensesSummary[[#This Row],[รหัส G/L]],อื่นๆ[วันที่เริ่มขอเช็ค],\">=\"&DATEVALUE(\" 1 \"&MonthlyExpensesSummary[[#Headers],[กันยายน]]&_YEAR),อื่นๆ[วันที่เริ่มขอเช็ค],\"<=\"&L$4)","v":{"v":0,"d":"฿0.00"}},{"$f":"SUMIFS(ItemizedExpenses[ยอดเงินเช็ค],ItemizedExpenses[รหัส G/L],MonthlyExpensesSummary[[#This Row],[รหัส G/L]],ItemizedExpenses[วันที่ในใบแจ้งหนี้],\">=\"&M$3,ItemizedExpenses[วันที่ในใบแจ้งหนี้],\"<=\"&M$4)+SUMIFS(อื่นๆ[ยอดเงินเช็ค],อื่นๆ[รหัส G/L],MonthlyExpensesSummary[[#This Row],[รหัส G/L]],อื่นๆ[วันที่เริ่มขอเช็ค],\">=\"&DATEVALUE(\" 1 \"&MonthlyExpensesSummary[[#Headers],[ตุลาคม]]&_YEAR),อื่นๆ[วันที่เริ่มขอเช็ค],\"<=\"&M$4)","v":{"v":0,"d":"฿0.00"}},{"$f":"SUMIFS(ItemizedExpenses[ยอดเงินเช็ค],ItemizedExpenses[รหัส G/L],MonthlyExpensesSummary[[#This Row],[รหัส G/L]],ItemizedExpenses[วันที่ในใบแจ้งหนี้],\">=\"&N$3,ItemizedExpenses[วันที่ในใบแจ้งหนี้],\"<=\"&N$4)+SUMIFS(อื่นๆ[ยอดเงินเช็ค],อื่นๆ[รหัส G/L],MonthlyExpensesSummary[[#This Row],[รหัส G/L]],อื่นๆ[วันที่เริ่มขอเช็ค],\">=\"&DATEVALUE(\" 1 \"&MonthlyExpensesSummary[[#Headers],[พฤศจิกายน]]&_YEAR),อื่นๆ[วันที่เริ่มขอเช็ค],\"<=\"&N$4)","v":{"v":0,"d":"฿0.00"}},{"$f":"SUMIFS(ItemizedExpenses[ยอดเงินเช็ค],ItemizedExpenses[รหัส G/L],MonthlyExpensesSummary[[#This Row],[รหัส G/L]],ItemizedExpenses[วันที่ในใบแจ้งหนี้],\">=\"&O$3,ItemizedExpenses[วันที่ในใบแจ้งหนี้],\"<=\"&O$4)+SUMIFS(อื่นๆ[ยอดเงินเช็ค],อื่นๆ[รหัส G/L],MonthlyExpensesSummary[[#This Row],[รหัส G/L]],อื่นๆ[วันที่เริ่มขอเช็ค],\">=\"&DATEVALUE(\" 1 \"&MonthlyExpensesSummary[[#Headers],[ธันวาคม]]&_YEAR),อื่นๆ[วันที่เริ่มขอเช็ค],\"<=\"&O$4)","v":{"v":0,"d":"฿0.00"}},{"$f":"SUM(MonthlyExpensesSummary[[#This Row],[มกราคม]:[ธันวาคม]])","v":{"v":0,"d":"฿0.00"}}]
[null,8000,"แผนประกันสุขภาพ",{"$f":"SUMIFS(ItemizedExpenses[ยอดเงินเช็ค],ItemizedExpenses[รหัส G/L],MonthlyExpensesSummary[[#This Row],[รหัส G/L]],ItemizedExpenses[วันที่ในใบแจ้งหนี้],\">=\"&D$3,ItemizedExpenses[วันที่ในใบแจ้งหนี้],\"<=\"&D$4)+SUMIFS(อื่นๆ[ยอดเงินเช็ค],อื่นๆ[รหัส G/L],MonthlyExpensesSummary[[#This Row],[รหัส G/L]],อื่นๆ[วันที่เริ่มขอเช็ค],\">=\"&DATEVALUE(\" 1 \"&MonthlyExpensesSummary[[#Headers],[มกราคม]]&_YEAR),อื่นๆ[วันที่เริ่มขอเช็ค],\"<=\"&D$4)","v":{"v":0,"d":"฿0.00"}},{"$f":"SUMIFS(ItemizedExpenses[ยอดเงินเช็ค],ItemizedExpenses[รหัส G/L],MonthlyExpensesSummary[[#This Row],[รหัส G/L]],ItemizedExpenses[วันที่ในใบแจ้งหนี้],\">=\"&E$3,ItemizedExpenses[วันที่ในใบแจ้งหนี้],\"<=\"&E$4)+SUMIFS(อื่นๆ[ยอดเงินเช็ค],อื่นๆ[รหัส G/L],MonthlyExpensesSummary[[#This Row],[รหัส G/L]],อื่นๆ[วันที่เริ่มขอเช็ค],\">=\"&DATEVALUE(\" 1 \"&MonthlyExpensesSummary[[#Headers],[กุมภาพันธ์]]&_YEAR),อื่นๆ[วันที่เริ่มขอเช็ค],\"<=\"&E$4)","v":{"v":0,"d":"฿0.00"}},{"$f":"SUMIFS(ItemizedExpenses[ยอดเงินเช็ค],ItemizedExpenses[รหัส G/L],MonthlyExpensesSummary[[#This Row],[รหัส G/L]],ItemizedExpenses[วันที่ในใบแจ้งหนี้],\">=\"&F$3,ItemizedExpenses[วันที่ในใบแจ้งหนี้],\"<=\"&F$4)+SUMIFS(อื่นๆ[ยอดเงินเช็ค],อื่นๆ[รหัส G/L],MonthlyExpensesSummary[[#This Row],[รหัส G/L]],อื่นๆ[วันที่เริ่มขอเช็ค],\">=\"&DATEVALUE(\" 1 \"&MonthlyExpensesSummary[[#Headers],[มีนาคม]]&_YEAR),อื่นๆ[วันที่เริ่มขอเช็ค],\"<=\"&F$4)","v":{"v":0,"d":"฿0.00"}},{"$f":"SUMIFS(ItemizedExpenses[ยอดเงินเช็ค],ItemizedExpenses[รหัส G/L],MonthlyExpensesSummary[[#This Row],[รหัส G/L]],ItemizedExpenses[วันที่ในใบแจ้งหนี้],\">=\"&G$3,ItemizedExpenses[วันที่ในใบแจ้งหนี้],\"<=\"&G$4)+SUMIFS(อื่นๆ[ยอดเงินเช็ค],อื่นๆ[รหัส G/L],MonthlyExpensesSummary[[#This Row],[รหัส G/L]],อื่นๆ[วันที่เริ่มขอเช็ค],\">=\"&DATEVALUE(\" 1 \"&MonthlyExpensesSummary[[#Headers],[เมษายน]]&_YEAR),อื่นๆ[วันที่เริ่มขอเช็ค],\"<=\"&G$4)","v":{"v":0,"d":"฿0.00"}},{"$f":"SUMIFS(ItemizedExpenses[ยอดเงินเช็ค],ItemizedExpenses[รหัส G/L],MonthlyExpensesSummary[[#This Row],[รหัส G/L]],ItemizedExpenses[วันที่ในใบแจ้งหนี้],\">=\"&H$3,ItemizedExpenses[วันที่ในใบแจ้งหนี้],\"<=\"&H$4)+SUMIFS(อื่นๆ[ยอดเงินเช็ค],อื่นๆ[รหัส G/L],MonthlyExpensesSummary[[#This Row],[รหัส G/L]],อื่นๆ[วันที่เริ่มขอเช็ค],\">=\"&DATEVALUE(\" 1 \"&MonthlyExpensesSummary[[#Headers],[พฤษภาคม]]&_YEAR),อื่นๆ[วันที่เริ่มขอเช็ค],\"<=\"&H$4)","v":{"v":0,"d":"฿0.00"}},{"$f":"SUMIFS(ItemizedExpenses[ยอดเงินเช็ค],ItemizedExpenses[รหัส G/L],MonthlyExpensesSummary[[#This Row],[รหัส G/L]],ItemizedExpenses[วันที่ในใบแจ้งหนี้],\">=\"&I$3,ItemizedExpenses[วันที่ในใบแจ้งหนี้],\"<=\"&I$4)+SUMIFS(อื่นๆ[ยอดเงินเช็ค],อื่นๆ[รหัส G/L],MonthlyExpensesSummary[[#This Row],[รหัส G/L]],อื่นๆ[วันที่เริ่มขอเช็ค],\">=\"&DATEVALUE(\" 1 \"&MonthlyExpensesSummary[[#Headers],[มิถุนายน]]&_YEAR),อื่นๆ[วันที่เริ่มขอเช็ค],\"<=\"&I$4)","v":{"v":0,"d":"฿0.00"}},{"$f":"SUMIFS(ItemizedExpenses[ยอดเงินเช็ค],ItemizedExpenses[รหัส G/L],MonthlyExpensesSummary[[#This Row],[รหัส G/L]],ItemizedExpenses[วันที่ในใบแจ้งหนี้],\">=\"&J$3,ItemizedExpenses[วันที่ในใบแจ้งหนี้],\"<=\"&J$4)+SUMIFS(อื่นๆ[ยอดเงินเช็ค],อื่นๆ[รหัส G/L],MonthlyExpensesSummary[[#This Row],[รหัส G/L]],อื่นๆ[วันที่เริ่มขอเช็ค],\">=\"&DATEVALUE(\" 1 \"&MonthlyExpensesSummary[[#Headers],[กรกฎาคม]]&_YEAR),อื่นๆ[วันที่เริ่มขอเช็ค],\"<=\"&J$4)","v":{"v":0,"d":"฿0.00"}},{"$f":"SUMIFS(ItemizedExpenses[ยอดเงินเช็ค],ItemizedExpenses[รหัส G/L],MonthlyExpensesSummary[[#This Row],[รหัส G/L]],ItemizedExpenses[วันที่ในใบแจ้งหนี้],\">=\"&K$3,ItemizedExpenses[วันที่ในใบแจ้งหนี้],\"<=\"&K$4)+SUMIFS(อื่นๆ[ยอดเงินเช็ค],อื่นๆ[รหัส G/L],MonthlyExpensesSummary[[#This Row],[รหัส G/L]],อื่นๆ[วันที่เริ่มขอเช็ค],\">=\"&DATEVALUE(\" 1 \"&MonthlyExpensesSummary[[#Headers],[สิงหาคม]]&_YEAR),อื่นๆ[วันที่เริ่มขอเช็ค],\"<=\"&K$4)","v":{"v":0,"d":"฿0.00"}},{"$f":"SUMIFS(ItemizedExpenses[ยอดเงินเช็ค],ItemizedExpenses[รหัส G/L],MonthlyExpensesSummary[[#This Row],[รหัส G/L]],ItemizedExpenses[วันที่ในใบแจ้งหนี้],\">=\"&L$3,ItemizedExpenses[วันที่ในใบแจ้งหนี้],\"<=\"&L$4)+SUMIFS(อื่นๆ[ยอดเงินเช็ค],อื่นๆ[รหัส G/L],MonthlyExpensesSummary[[#This Row],[รหัส G/L]],อื่นๆ[วันที่เริ่มขอเช็ค],\">=\"&DATEVALUE(\" 1 \"&MonthlyExpensesSummary[[#Headers],[กันยายน]]&_YEAR),อื่นๆ[วันที่เริ่มขอเช็ค],\"<=\"&L$4)","v":{"v":0,"d":"฿0.00"}},{"$f":"SUMIFS(ItemizedExpenses[ยอดเงินเช็ค],ItemizedExpenses[รหัส G/L],MonthlyExpensesSummary[[#This Row],[รหัส G/L]],ItemizedExpenses[วันที่ในใบแจ้งหนี้],\">=\"&M$3,ItemizedExpenses[วันที่ในใบแจ้งหนี้],\"<=\"&M$4)+SUMIFS(อื่นๆ[ยอดเงินเช็ค],อื่นๆ[รหัส G/L],MonthlyExpensesSummary[[#This Row],[รหัส G/L]],อื่นๆ[วันที่เริ่มขอเช็ค],\">=\"&DATEVALUE(\" 1 \"&MonthlyExpensesSummary[[#Headers],[ตุลาคม]]&_YEAR),อื่นๆ[วันที่เริ่มขอเช็ค],\"<=\"&M$4)","v":{"v":0,"d":"฿0.00"}},{"$f":"SUMIFS(ItemizedExpenses[ยอดเงินเช็ค],ItemizedExpenses[รหัส G/L],MonthlyExpensesSummary[[#This Row],[รหัส G/L]],ItemizedExpenses[วันที่ในใบแจ้งหนี้],\">=\"&N$3,ItemizedExpenses[วันที่ในใบแจ้งหนี้],\"<=\"&N$4)+SUMIFS(อื่นๆ[ยอดเงินเช็ค],อื่นๆ[รหัส G/L],MonthlyExpensesSummary[[#This Row],[รหัส G/L]],อื่นๆ[วันที่เริ่มขอเช็ค],\">=\"&DATEVALUE(\" 1 \"&MonthlyExpensesSummary[[#Headers],[พฤศจิกายน]]&_YEAR),อื่นๆ[วันที่เริ่มขอเช็ค],\"<=\"&N$4)","v":{"v":0,"d":"฿0.00"}},{"$f":"SUMIFS(ItemizedExpenses[ยอดเงินเช็ค],ItemizedExpenses[รหัส G/L],MonthlyExpensesSummary[[#This Row],[รหัส G/L]],ItemizedExpenses[วันที่ในใบแจ้งหนี้],\">=\"&O$3,ItemizedExpenses[วันที่ในใบแจ้งหนี้],\"<=\"&O$4)+SUMIFS(อื่นๆ[ยอดเงินเช็ค],อื่นๆ[รหัส G/L],MonthlyExpensesSummary[[#This Row],[รหัส G/L]],อื่นๆ[วันที่เริ่มขอเช็ค],\">=\"&DATEVALUE(\" 1 \"&MonthlyExpensesSummary[[#Headers],[ธันวาคม]]&_YEAR),อื่นๆ[วันที่เริ่มขอเช็ค],\"<=\"&O$4)","v":{"v":0,"d":"฿0.00"}},{"$f":"SUM(MonthlyExpensesSummary[[#This Row],[มกราคม]:[ธันวาคม]])","v":{"v":0,"d":"฿0.00"}}]
[null,9000,"ต้นทุนอาคาร",{"$f":"SUMIFS(ItemizedExpenses[ยอดเงินเช็ค],ItemizedExpenses[รหัส G/L],MonthlyExpensesSummary[[#This Row],[รหัส G/L]],ItemizedExpenses[วันที่ในใบแจ้งหนี้],\">=\"&D$3,ItemizedExpenses[วันที่ในใบแจ้งหนี้],\"<=\"&D$4)+SUMIFS(อื่นๆ[ยอดเงินเช็ค],อื่นๆ[รหัส G/L],MonthlyExpensesSummary[[#This Row],[รหัส G/L]],อื่นๆ[วันที่เริ่มขอเช็ค],\">=\"&DATEVALUE(\" 1 \"&MonthlyExpensesSummary[[#Headers],[มกราคม]]&_YEAR),อื่นๆ[วันที่เริ่มขอเช็ค],\"<=\"&D$4)","v":{"v":0,"d":"฿0.00"}},{"$f":"SUMIFS(ItemizedExpenses[ยอดเงินเช็ค],ItemizedExpenses[รหัส G/L],MonthlyExpensesSummary[[#This Row],[รหัส G/L]],ItemizedExpenses[วันที่ในใบแจ้งหนี้],\">=\"&E$3,ItemizedExpenses[วันที่ในใบแจ้งหนี้],\"<=\"&E$4)+SUMIFS(อื่นๆ[ยอดเงินเช็ค],อื่นๆ[รหัส G/L],MonthlyExpensesSummary[[#This Row],[รหัส G/L]],อื่นๆ[วันที่เริ่มขอเช็ค],\">=\"&DATEVALUE(\" 1 \"&MonthlyExpensesSummary[[#Headers],[กุมภาพันธ์]]&_YEAR),อื่นๆ[วันที่เริ่มขอเช็ค],\"<=\"&E$4)","v":{"v":0,"d":"฿0.00"}},{"$f":"SUMIFS(ItemizedExpenses[ยอดเงินเช็ค],ItemizedExpenses[รหัส G/L],MonthlyExpensesSummary[[#This Row],[รหัส G/L]],ItemizedExpenses[วันที่ในใบแจ้งหนี้],\">=\"&F$3,ItemizedExpenses[วันที่ในใบแจ้งหนี้],\"<=\"&F$4)+SUMIFS(อื่นๆ[ยอดเงินเช็ค],อื่นๆ[รหัส G/L],MonthlyExpensesSummary[[#This Row],[รหัส G/L]],อื่นๆ[วันที่เริ่มขอเช็ค],\">=\"&DATEVALUE(\" 1 \"&MonthlyExpensesSummary[[#Headers],[มีนาคม]]&_YEAR),อื่นๆ[วันที่เริ่มขอเช็ค],\"<=\"&F$4)","v":{"v":0,"d":"฿0.00"}},{"$f":"SUMIFS(ItemizedExpenses[ยอดเงินเช็ค],ItemizedExpenses[รหัส G/L],MonthlyExpensesSummary[[#This Row],[รหัส G/L]],ItemizedExpenses[วันที่ในใบแจ้งหนี้],\">=\"&G$3,ItemizedExpenses[วันที่ในใบแจ้งหนี้],\"<=\"&G$4)+SUMIFS(อื่นๆ[ยอดเงินเช็ค],อื่นๆ[รหัส G/L],MonthlyExpensesSummary[[#This Row],[รหัส G/L]],อื่นๆ[วันที่เริ่มขอเช็ค],\">=\"&DATEVALUE(\" 1 \"&MonthlyExpensesSummary[[#Headers],[เมษายน]]&_YEAR),อื่นๆ[วันที่เริ่มขอเช็ค],\"<=\"&G$4)","v":{"v":0,"d":"฿0.00"}},{"$f":"SUMIFS(ItemizedExpenses[ยอดเงินเช็ค],ItemizedExpenses[รหัส G/L],MonthlyExpensesSummary[[#This Row],[รหัส G/L]],ItemizedExpenses[วันที่ในใบแจ้งหนี้],\">=\"&H$3,ItemizedExpenses[วันที่ในใบแจ้งหนี้],\"<=\"&H$4)+SUMIFS(อื่นๆ[ยอดเงินเช็ค],อื่นๆ[รหัส G/L],MonthlyExpensesSummary[[#This Row],[รหัส G/L]],อื่นๆ[วันที่เริ่มขอเช็ค],\">=\"&DATEVALUE(\" 1 \"&MonthlyExpensesSummary[[#Headers],[พฤษภาคม]]&_YEAR),อื่นๆ[วันที่เริ่มขอเช็ค],\"<=\"&H$4)","v":{"v":0,"d":"฿0.00"}},{"$f":"SUMIFS(ItemizedExpenses[ยอดเงินเช็ค],ItemizedExpenses[รหัส G/L],MonthlyExpensesSummary[[#This Row],[รหัส G/L]],ItemizedExpenses[วันที่ในใบแจ้งหนี้],\">=\"&I$3,ItemizedExpenses[วันที่ในใบแจ้งหนี้],\"<=\"&I$4)+SUMIFS(อื่นๆ[ยอดเงินเช็ค],อื่นๆ[รหัส G/L],MonthlyExpensesSummary[[#This Row],[รหัส G/L]],อื่นๆ[วันที่เริ่มขอเช็ค],\">=\"&DATEVALUE(\" 1 \"&MonthlyExpensesSummary[[#Headers],[มิถุนายน]]&_YEAR),อื่นๆ[วันที่เริ่มขอเช็ค],\"<=\"&I$4)","v":{"v":0,"d":"฿0.00"}},{"$f":"SUMIFS(ItemizedExpenses[ยอดเงินเช็ค],ItemizedExpenses[รหัส G/L],MonthlyExpensesSummary[[#This Row],[รหัส G/L]],ItemizedExpenses[วันที่ในใบแจ้งหนี้],\">=\"&J$3,ItemizedExpenses[วันที่ในใบแจ้งหนี้],\"<=\"&J$4)+SUMIFS(อื่นๆ[ยอดเงินเช็ค],อื่นๆ[รหัส G/L],MonthlyExpensesSummary[[#This Row],[รหัส G/L]],อื่นๆ[วันที่เริ่มขอเช็ค],\">=\"&DATEVALUE(\" 1 \"&MonthlyExpensesSummary[[#Headers],[กรกฎาคม]]&_YEAR),อื่นๆ[วันที่เริ่มขอเช็ค],\"<=\"&J$4)","v":{"v":0,"d":"฿0.00"}},{"$f":"SUMIFS(ItemizedExpenses[ยอดเงินเช็ค],ItemizedExpenses[รหัส G/L],MonthlyExpensesSummary[[#This Row],[รหัส G/L]],ItemizedExpenses[วันที่ในใบแจ้งหนี้],\">=\"&K$3,ItemizedExpenses[วันที่ในใบแจ้งหนี้],\"<=\"&K$4)+SUMIFS(อื่นๆ[ยอดเงินเช็ค],อื่นๆ[รหัส G/L],MonthlyExpensesSummary[[#This Row],[รหัส G/L]],อื่นๆ[วันที่เริ่มขอเช็ค],\">=\"&DATEVALUE(\" 1 \"&MonthlyExpensesSummary[[#Headers],[สิงหาคม]]&_YEAR),อื่นๆ[วันที่เริ่มขอเช็ค],\"<=\"&K$4)","v":{"v":0,"d":"฿0.00"}},{"$f":"SUMIFS(ItemizedExpenses[ยอดเงินเช็ค],ItemizedExpenses[รหัส G/L],MonthlyExpensesSummary[[#This Row],[รหัส G/L]],ItemizedExpenses[วันที่ในใบแจ้งหนี้],\">=\"&L$3,ItemizedExpenses[วันที่ในใบแจ้งหนี้],\"<=\"&L$4)+SUMIFS(อื่นๆ[ยอดเงินเช็ค],อื่นๆ[รหัส G/L],MonthlyExpensesSummary[[#This Row],[รหัส G/L]],อื่นๆ[วันที่เริ่มขอเช็ค],\">=\"&DATEVALUE(\" 1 \"&MonthlyExpensesSummary[[#Headers],[กันยายน]]&_YEAR),อื่นๆ[วันที่เริ่มขอเช็ค],\"<=\"&L$4)","v":{"v":0,"d":"฿0.00"}},{"$f":"SUMIFS(ItemizedExpenses[ยอดเงินเช็ค],ItemizedExpenses[รหัส G/L],MonthlyExpensesSummary[[#This Row],[รหัส G/L]],ItemizedExpenses[วันที่ในใบแจ้งหนี้],\">=\"&M$3,ItemizedExpenses[วันที่ในใบแจ้งหนี้],\"<=\"&M$4)+SUMIFS(อื่นๆ[ยอดเงินเช็ค],อื่นๆ[รหัส G/L],MonthlyExpensesSummary[[#This Row],[รหัส G/L]],อื่นๆ[วันที่เริ่มขอเช็ค],\">=\"&DATEVALUE(\" 1 \"&MonthlyExpensesSummary[[#Headers],[ตุลาคม]]&_YEAR),อื่นๆ[วันที่เริ่มขอเช็ค],\"<=\"&M$4)","v":{"v":0,"d":"฿0.00"}},{"$f":"SUMIFS(ItemizedExpenses[ยอดเงินเช็ค],ItemizedExpenses[รหัส G/L],MonthlyExpensesSummary[[#This Row],[รหัส G/L]],ItemizedExpenses[วันที่ในใบแจ้งหนี้],\">=\"&N$3,ItemizedExpenses[วันที่ในใบแจ้งหนี้],\"<=\"&N$4)+SUMIFS(อื่นๆ[ยอดเงินเช็ค],อื่นๆ[รหัส G/L],MonthlyExpensesSummary[[#This Row],[รหัส G/L]],อื่นๆ[วันที่เริ่มขอเช็ค],\">=\"&DATEVALUE(\" 1 \"&MonthlyExpensesSummary[[#Headers],[พฤศจิกายน]]&_YEAR),อื่นๆ[วันที่เริ่มขอเช็ค],\"<=\"&N$4)","v":{"v":0,"d":"฿0.00"}},{"$f":"SUMIFS(ItemizedExpenses[ยอดเงินเช็ค],ItemizedExpenses[รหัส G/L],MonthlyExpensesSummary[[#This Row],[รหัส G/L]],ItemizedExpenses[วันที่ในใบแจ้งหนี้],\">=\"&O$3,ItemizedExpenses[วันที่ในใบแจ้งหนี้],\"<=\"&O$4)+SUMIFS(อื่นๆ[ยอดเงินเช็ค],อื่นๆ[รหัส G/L],MonthlyExpensesSummary[[#This Row],[รหัส G/L]],อื่นๆ[วันที่เริ่มขอเช็ค],\">=\"&DATEVALUE(\" 1 \"&MonthlyExpensesSummary[[#Headers],[ธันวาคม]]&_YEAR),อื่นๆ[วันที่เริ่มขอเช็ค],\"<=\"&O$4)","v":{"v":0,"d":"฿0.00"}},{"$f":"SUM(MonthlyExpensesSummary[[#This Row],[มกราคม]:[ธันวาคม]])","v":{"v":0,"d":"฿0.00"}}]
[null,10000,"การตลาด",{"$f":"SUMIFS(ItemizedExpenses[ยอดเงินเช็ค],ItemizedExpenses[รหัส G/L],MonthlyExpensesSummary[[#This Row],[รหัส G/L]],ItemizedExpenses[วันที่ในใบแจ้งหนี้],\">=\"&D$3,ItemizedExpenses[วันที่ในใบแจ้งหนี้],\"<=\"&D$4)+SUMIFS(อื่นๆ[ยอดเงินเช็ค],อื่นๆ[รหัส G/L],MonthlyExpensesSummary[[#This Row],[รหัส G/L]],อื่นๆ[วันที่เริ่มขอเช็ค],\">=\"&DATEVALUE(\" 1 \"&MonthlyExpensesSummary[[#Headers],[มกราคม]]&_YEAR),อื่นๆ[วันที่เริ่มขอเช็ค],\"<=\"&D$4)","v":{"v":0,"d":"฿0.00"}},{"$f":"SUMIFS(ItemizedExpenses[ยอดเงินเช็ค],ItemizedExpenses[รหัส G/L],MonthlyExpensesSummary[[#This Row],[รหัส G/L]],ItemizedExpenses[วันที่ในใบแจ้งหนี้],\">=\"&E$3,ItemizedExpenses[วันที่ในใบแจ้งหนี้],\"<=\"&E$4)+SUMIFS(อื่นๆ[ยอดเงินเช็ค],อื่นๆ[รหัส G/L],MonthlyExpensesSummary[[#This Row],[รหัส G/L]],อื่นๆ[วันที่เริ่มขอเช็ค],\">=\"&DATEVALUE(\" 1 \"&MonthlyExpensesSummary[[#Headers],[กุมภาพันธ์]]&_YEAR),อื่นๆ[วันที่เริ่มขอเช็ค],\"<=\"&E$4)","v":{"v":0,"d":"฿0.00"}},{"$f":"SUMIFS(ItemizedExpenses[ยอดเงินเช็ค],ItemizedExpenses[รหัส G/L],MonthlyExpensesSummary[[#This Row],[รหัส G/L]],ItemizedExpenses[วันที่ในใบแจ้งหนี้],\">=\"&F$3,ItemizedExpenses[วันที่ในใบแจ้งหนี้],\"<=\"&F$4)+SUMIFS(อื่นๆ[ยอดเงินเช็ค],อื่นๆ[รหัส G/L],MonthlyExpensesSummary[[#This Row],[รหัส G/L]],อื่นๆ[วันที่เริ่มขอเช็ค],\">=\"&DATEVALUE(\" 1 \"&MonthlyExpensesSummary[[#Headers],[มีนาคม]]&_YEAR),อื่นๆ[วันที่เริ่มขอเช็ค],\"<=\"&F$4)","v":{"v":0,"d":"฿0.00"}},{"$f":"SUMIFS(ItemizedExpenses[ยอดเงินเช็ค],ItemizedExpenses[รหัส G/L],MonthlyExpensesSummary[[#This Row],[รหัส G/L]],ItemizedExpenses[วันที่ในใบแจ้งหนี้],\">=\"&G$3,ItemizedExpenses[วันที่ในใบแจ้งหนี้],\"<=\"&G$4)+SUMIFS(อื่นๆ[ยอดเงินเช็ค],อื่นๆ[รหัส G/L],MonthlyExpensesSummary[[#This Row],[รหัส G/L]],อื่นๆ[วันที่เริ่มขอเช็ค],\">=\"&DATEVALUE(\" 1 \"&MonthlyExpensesSummary[[#Headers],[เมษายน]]&_YEAR),อื่นๆ[วันที่เริ่มขอเช็ค],\"<=\"&G$4)","v":{"v":0,"d":"฿0.00"}},{"$f":"SUMIFS(ItemizedExpenses[ยอดเงินเช็ค],ItemizedExpenses[รหัส G/L],MonthlyExpensesSummary[[#This Row],[รหัส G/L]],ItemizedExpenses[วันที่ในใบแจ้งหนี้],\">=\"&H$3,ItemizedExpenses[วันที่ในใบแจ้งหนี้],\"<=\"&H$4)+SUMIFS(อื่นๆ[ยอดเงินเช็ค],อื่นๆ[รหัส G/L],MonthlyExpensesSummary[[#This Row],[รหัส G/L]],อื่นๆ[วันที่เริ่มขอเช็ค],\">=\"&DATEVALUE(\" 1 \"&MonthlyExpensesSummary[[#Headers],[พฤษภาคม]]&_YEAR),อื่นๆ[วันที่เริ่มขอเช็ค],\"<=\"&H$4)","v":{"v":0,"d":"฿0.00"}},{"$f":"SUMIFS(ItemizedExpenses[ยอดเงินเช็ค],ItemizedExpenses[รหัส G/L],MonthlyExpensesSummary[[#This Row],[รหัส G/L]],ItemizedExpenses[วันที่ในใบแจ้งหนี้],\">=\"&I$3,ItemizedExpenses[วันที่ในใบแจ้งหนี้],\"<=\"&I$4)+SUMIFS(อื่นๆ[ยอดเงินเช็ค],อื่นๆ[รหัส G/L],MonthlyExpensesSummary[[#This Row],[รหัส G/L]],อื่นๆ[วันที่เริ่มขอเช็ค],\">=\"&DATEVALUE(\" 1 \"&MonthlyExpensesSummary[[#Headers],[มิถุนายน]]&_YEAR),อื่นๆ[วันที่เริ่มขอเช็ค],\"<=\"&I$4)","v":{"v":0,"d":"฿0.00"}},{"$f":"SUMIFS(ItemizedExpenses[ยอดเงินเช็ค],ItemizedExpenses[รหัส G/L],MonthlyExpensesSummary[[#This Row],[รหัส G/L]],ItemizedExpenses[วันที่ในใบแจ้งหนี้],\">=\"&J$3,ItemizedExpenses[วันที่ในใบแจ้งหนี้],\"<=\"&J$4)+SUMIFS(อื่นๆ[ยอดเงินเช็ค],อื่นๆ[รหัส G/L],MonthlyExpensesSummary[[#This Row],[รหัส G/L]],อื่นๆ[วันที่เริ่มขอเช็ค],\">=\"&DATEVALUE(\" 1 \"&MonthlyExpensesSummary[[#Headers],[กรกฎาคม]]&_YEAR),อื่นๆ[วันที่เริ่มขอเช็ค],\"<=\"&J$4)","v":{"v":0,"d":"฿0.00"}},{"$f":"SUMIFS(ItemizedExpenses[ยอดเงินเช็ค],ItemizedExpenses[รหัส G/L],MonthlyExpensesSummary[[#This Row],[รหัส G/L]],ItemizedExpenses[วันที่ในใบแจ้งหนี้],\">=\"&K$3,ItemizedExpenses[วันที่ในใบแจ้งหนี้],\"<=\"&K$4)+SUMIFS(อื่นๆ[ยอดเงินเช็ค],อื่นๆ[รหัส G/L],MonthlyExpensesSummary[[#This Row],[รหัส G/L]],อื่นๆ[วันที่เริ่มขอเช็ค],\">=\"&DATEVALUE(\" 1 \"&MonthlyExpensesSummary[[#Headers],[สิงหาคม]]&_YEAR),อื่นๆ[วันที่เริ่มขอเช็ค],\"<=\"&K$4)","v":{"v":0,"d":"฿0.00"}},{"$f":"SUMIFS(ItemizedExpenses[ยอดเงินเช็ค],ItemizedExpenses[รหัส G/L],MonthlyExpensesSummary[[#This Row],[รหัส G/L]],ItemizedExpenses[วันที่ในใบแจ้งหนี้],\">=\"&L$3,ItemizedExpenses[วันที่ในใบแจ้งหนี้],\"<=\"&L$4)+SUMIFS(อื่นๆ[ยอดเงินเช็ค],อื่นๆ[รหัส G/L],MonthlyExpensesSummary[[#This Row],[รหัส G/L]],อื่นๆ[วันที่เริ่มขอเช็ค],\">=\"&DATEVALUE(\" 1 \"&MonthlyExpensesSummary[[#Headers],[กันยายน]]&_YEAR),อื่นๆ[วันที่เริ่มขอเช็ค],\"<=\"&L$4)","v":{"v":0,"d":"฿0.00"}},{"$f":"SUMIFS(ItemizedExpenses[ยอดเงินเช็ค],ItemizedExpenses[รหัส G/L],MonthlyExpensesSummary[[#This Row],[รหัส G/L]],ItemizedExpenses[วันที่ในใบแจ้งหนี้],\">=\"&M$3,ItemizedExpenses[วันที่ในใบแจ้งหนี้],\"<=\"&M$4)+SUMIFS(อื่นๆ[ยอดเงินเช็ค],อื่นๆ[รหัส G/L],MonthlyExpensesSummary[[#This Row],[รหัส G/L]],อื่นๆ[วันที่เริ่มขอเช็ค],\">=\"&DATEVALUE(\" 1 \"&MonthlyExpensesSummary[[#Headers],[ตุลาคม]]&_YEAR),อื่นๆ[วันที่เริ่มขอเช็ค],\"<=\"&M$4)","v":{"v":0,"d":"฿0.00"}},{"$f":"SUMIFS(ItemizedExpenses[ยอดเงินเช็ค],ItemizedExpenses[รหัส G/L],MonthlyExpensesSummary[[#This Row],[รหัส G/L]],ItemizedExpenses[วันที่ในใบแจ้งหนี้],\">=\"&N$3,ItemizedExpenses[วันที่ในใบแจ้งหนี้],\"<=\"&N$4)+SUMIFS(อื่นๆ[ยอดเงินเช็ค],อื่นๆ[รหัส G/L],MonthlyExpensesSummary[[#This Row],[รหัส G/L]],อื่นๆ[วันที่เริ่มขอเช็ค],\">=\"&DATEVALUE(\" 1 \"&MonthlyExpensesSummary[[#Headers],[พฤศจิกายน]]&_YEAR),อื่นๆ[วันที่เริ่มขอเช็ค],\"<=\"&N$4)","v":{"v":0,"d":"฿0.00"}},{"$f":"SUMIFS(ItemizedExpenses[ยอดเงินเช็ค],ItemizedExpenses[รหัส G/L],MonthlyExpensesSummary[[#This Row],[รหัส G/L]],ItemizedExpenses[วันที่ในใบแจ้งหนี้],\">=\"&O$3,ItemizedExpenses[วันที่ในใบแจ้งหนี้],\"<=\"&O$4)+SUMIFS(อื่นๆ[ยอดเงินเช็ค],อื่นๆ[รหัส G/L],MonthlyExpensesSummary[[#This Row],[รหัส G/L]],อื่นๆ[วันที่เริ่มขอเช็ค],\">=\"&DATEVALUE(\" 1 \"&MonthlyExpensesSummary[[#Headers],[ธันวาคม]]&_YEAR),อื่นๆ[วันที่เริ่มขอเช็ค],\"<=\"&O$4)","v":{"v":0,"d":"฿0.00"}},{"$f":"SUM(MonthlyExpensesSummary[[#This Row],[มกราคม]:[ธันวาคม]])","v":{"v":0,"d":"฿0.00"}}]
[null,11000,"การกุศล",{"$f":"SUMIFS(ItemizedExpenses[ยอดเงินเช็ค],ItemizedExpenses[รหัส G/L],MonthlyExpensesSummary[[#This Row],[รหัส G/L]],ItemizedExpenses[วันที่ในใบแจ้งหนี้],\">=\"&D$3,ItemizedExpenses[วันที่ในใบแจ้งหนี้],\"<=\"&D$4)+SUMIFS(อื่นๆ[ยอดเงินเช็ค],อื่นๆ[รหัส G/L],MonthlyExpensesSummary[[#This Row],[รหัส G/L]],อื่นๆ[วันที่เริ่มขอเช็ค],\">=\"&DATEVALUE(\" 1 \"&MonthlyExpensesSummary[[#Headers],[มกราคม]]&_YEAR),อื่นๆ[วันที่เริ่มขอเช็ค],\"<=\"&D$4)","v":{"v":0,"d":"฿0.00"}},{"$f":"SUMIFS(ItemizedExpenses[ยอดเงินเช็ค],ItemizedExpenses[รหัส G/L],MonthlyExpensesSummary[[#This Row],[รหัส G/L]],ItemizedExpenses[วันที่ในใบแจ้งหนี้],\">=\"&E$3,ItemizedExpenses[วันที่ในใบแจ้งหนี้],\"<=\"&E$4)+SUMIFS(อื่นๆ[ยอดเงินเช็ค],อื่นๆ[รหัส G/L],MonthlyExpensesSummary[[#This Row],[รหัส G/L]],อื่นๆ[วันที่เริ่มขอเช็ค],\">=\"&DATEVALUE(\" 1 \"&MonthlyExpensesSummary[[#Headers],[กุมภาพันธ์]]&_YEAR),อื่นๆ[วันที่เริ่มขอเช็ค],\"<=\"&E$4)","v":{"v":0,"d":"฿0.00"}},{"$f":"SUMIFS(ItemizedExpenses[ยอดเงินเช็ค],ItemizedExpenses[รหัส G/L],MonthlyExpensesSummary[[#This Row],[รหัส G/L]],ItemizedExpenses[วันที่ในใบแจ้งหนี้],\">=\"&F$3,ItemizedExpenses[วันที่ในใบแจ้งหนี้],\"<=\"&F$4)+SUMIFS(อื่นๆ[ยอดเงินเช็ค],อื่นๆ[รหัส G/L],MonthlyExpensesSummary[[#This Row],[รหัส G/L]],อื่นๆ[วันที่เริ่มขอเช็ค],\">=\"&DATEVALUE(\" 1 \"&MonthlyExpensesSummary[[#Headers],[มีนาคม]]&_YEAR),อื่นๆ[วันที่เริ่มขอเช็ค],\"<=\"&F$4)","v":{"v":0,"d":"฿0.00"}},{"$f":"SUMIFS(ItemizedExpenses[ยอดเงินเช็ค],ItemizedExpenses[รหัส G/L],MonthlyExpensesSummary[[#This Row],[รหัส G/L]],ItemizedExpenses[วันที่ในใบแจ้งหนี้],\">=\"&G$3,ItemizedExpenses[วันที่ในใบแจ้งหนี้],\"<=\"&G$4)+SUMIFS(อื่นๆ[ยอดเงินเช็ค],อื่นๆ[รหัส G/L],MonthlyExpensesSummary[[#This Row],[รหัส G/L]],อื่นๆ[วันที่เริ่มขอเช็ค],\">=\"&DATEVALUE(\" 1 \"&MonthlyExpensesSummary[[#Headers],[เมษายน]]&_YEAR),อื่นๆ[วันที่เริ่มขอเช็ค],\"<=\"&G$4)","v":{"v":0,"d":"฿0.00"}},{"$f":"SUMIFS(ItemizedExpenses[ยอดเงินเช็ค],ItemizedExpenses[รหัส G/L],MonthlyExpensesSummary[[#This Row],[รหัส G/L]],ItemizedExpenses[วันที่ในใบแจ้งหนี้],\">=\"&H$3,ItemizedExpenses[วันที่ในใบแจ้งหนี้],\"<=\"&H$4)+SUMIFS(อื่นๆ[ยอดเงินเช็ค],อื่นๆ[รหัส G/L],MonthlyExpensesSummary[[#This Row],[รหัส G/L]],อื่นๆ[วันที่เริ่มขอเช็ค],\">=\"&DATEVALUE(\" 1 \"&MonthlyExpensesSummary[[#Headers],[พฤษภาคม]]&_YEAR),อื่นๆ[วันที่เริ่มขอเช็ค],\"<=\"&H$4)","v":{"v":0,"d":"฿0.00"}},{"$f":"SUMIFS(ItemizedExpenses[ยอดเงินเช็ค],ItemizedExpenses[รหัส G/L],MonthlyExpensesSummary[[#This Row],[รหัส G/L]],ItemizedExpenses[วันที่ในใบแจ้งหนี้],\">=\"&I$3,ItemizedExpenses[วันที่ในใบแจ้งหนี้],\"<=\"&I$4)+SUMIFS(อื่นๆ[ยอดเงินเช็ค],อื่นๆ[รหัส G/L],MonthlyExpensesSummary[[#This Row],[รหัส G/L]],อื่นๆ[วันที่เริ่มขอเช็ค],\">=\"&DATEVALUE(\" 1 \"&MonthlyExpensesSummary[[#Headers],[มิถุนายน]]&_YEAR),อื่นๆ[วันที่เริ่มขอเช็ค],\"<=\"&I$4)","v":{"v":0,"d":"฿0.00"}},{"$f":"SUMIFS(ItemizedExpenses[ยอดเงินเช็ค],ItemizedExpenses[รหัส G/L],MonthlyExpensesSummary[[#This Row],[รหัส G/L]],ItemizedExpenses[วันที่ในใบแจ้งหนี้],\">=\"&J$3,ItemizedExpenses[วันที่ในใบแจ้งหนี้],\"<=\"&J$4)+SUMIFS(อื่นๆ[ยอดเงินเช็ค],อื่นๆ[รหัส G/L],MonthlyExpensesSummary[[#This Row],[รหัส G/L]],อื่นๆ[วันที่เริ่มขอเช็ค],\">=\"&DATEVALUE(\" 1 \"&MonthlyExpensesSummary[[#Headers],[กรกฎาคม]]&_YEAR),อื่นๆ[วันที่เริ่มขอเช็ค],\"<=\"&J$4)","v":{"v":0,"d":"฿0.00"}},{"$f":"SUMIFS(ItemizedExpenses[ยอดเงินเช็ค],ItemizedExpenses[รหัส G/L],MonthlyExpensesSummary[[#This Row],[รหัส G/L]],ItemizedExpenses[วันที่ในใบแจ้งหนี้],\">=\"&K$3,ItemizedExpenses[วันที่ในใบแจ้งหนี้],\"<=\"&K$4)+SUMIFS(อื่นๆ[ยอดเงินเช็ค],อื่นๆ[รหัส G/L],MonthlyExpensesSummary[[#This Row],[รหัส G/L]],อื่นๆ[วันที่เริ่มขอเช็ค],\">=\"&DATEVALUE(\" 1 \"&MonthlyExpensesSummary[[#Headers],[สิงหาคม]]&_YEAR),อื่นๆ[วันที่เริ่มขอเช็ค],\"<=\"&K$4)","v":{"v":0,"d":"฿0.00"}},{"$f":"SUMIFS(ItemizedExpenses[ยอดเงินเช็ค],ItemizedExpenses[รหัส G/L],MonthlyExpensesSummary[[#This Row],[รหัส G/L]],ItemizedExpenses[วันที่ในใบแจ้งหนี้],\">=\"&L$3,ItemizedExpenses[วันที่ในใบแจ้งหนี้],\"<=\"&L$4)+SUMIFS(อื่นๆ[ยอดเงินเช็ค],อื่นๆ[รหัส G/L],MonthlyExpensesSummary[[#This Row],[รหัส G/L]],อื่นๆ[วันที่เริ่มขอเช็ค],\">=\"&DATEVALUE(\" 1 \"&MonthlyExpensesSummary[[#Headers],[กันยายน]]&_YEAR),อื่นๆ[วันที่เริ่มขอเช็ค],\"<=\"&L$4)","v":{"v":0,"d":"฿0.00"}},{"$f":"SUMIFS(ItemizedExpenses[ยอดเงินเช็ค],ItemizedExpenses[รหัส G/L],MonthlyExpensesSummary[[#This Row],[รหัส G/L]],ItemizedExpenses[วันที่ในใบแจ้งหนี้],\">=\"&M$3,ItemizedExpenses[วันที่ในใบแจ้งหนี้],\"<=\"&M$4)+SUMIFS(อื่นๆ[ยอดเงินเช็ค],อื่นๆ[รหัส G/L],MonthlyExpensesSummary[[#This Row],[รหัส G/L]],อื่นๆ[วันที่เริ่มขอเช็ค],\">=\"&DATEVALUE(\" 1 \"&MonthlyExpensesSummary[[#Headers],[ตุลาคม]]&_YEAR),อื่นๆ[วันที่เริ่มขอเช็ค],\"<=\"&M$4)","v":{"v":0,"d":"฿0.00"}},{"$f":"SUMIFS(ItemizedExpenses[ยอดเงินเช็ค],ItemizedExpenses[รหัส G/L],MonthlyExpensesSummary[[#This Row],[รหัส G/L]],ItemizedExpenses[วันที่ในใบแจ้งหนี้],\">=\"&N$3,ItemizedExpenses[วันที่ในใบแจ้งหนี้],\"<=\"&N$4)+SUMIFS(อื่นๆ[ยอดเงินเช็ค],อื่นๆ[รหัส G/L],MonthlyExpensesSummary[[#This Row],[รหัส G/L]],อื่นๆ[วันที่เริ่มขอเช็ค],\">=\"&DATEVALUE(\" 1 \"&MonthlyExpensesSummary[[#Headers],[พฤศจิกายน]]&_YEAR),อื่นๆ[วันที่เริ่มขอเช็ค],\"<=\"&N$4)","v":{"v":0,"d":"฿0.00"}},{"$f":"SUMIFS(ItemizedExpenses[ยอดเงินเช็ค],ItemizedExpenses[รหัส G/L],MonthlyExpensesSummary[[#This Row],[รหัส G/L]],ItemizedExpenses[วันที่ในใบแจ้งหนี้],\">=\"&O$3,ItemizedExpenses[วันที่ในใบแจ้งหนี้],\"<=\"&O$4)+SUMIFS(อื่นๆ[ยอดเงินเช็ค],อื่นๆ[รหัส G/L],MonthlyExpensesSummary[[#This Row],[รหัส G/L]],อื่นๆ[วันที่เริ่มขอเช็ค],\">=\"&DATEVALUE(\" 1 \"&MonthlyExpensesSummary[[#Headers],[ธันวาคม]]&_YEAR),อื่นๆ[วันที่เริ่มขอเช็ค],\"<=\"&O$4)","v":{"v":0,"d":"฿0.00"}},{"$f":"SUM(MonthlyExpensesSummary[[#This Row],[มกราคม]:[ธันวาคม]])","v":{"v":0,"d":"฿0.00"}}]
[null,12000,"การสนับสนุนทางการเงิน",{"$f":"SUMIFS(ItemizedExpenses[ยอดเงินเช็ค],ItemizedExpenses[รหัส G/L],MonthlyExpensesSummary[[#This Row],[รหัส G/L]],ItemizedExpenses[วันที่ในใบแจ้งหนี้],\">=\"&D$3,ItemizedExpenses[วันที่ในใบแจ้งหนี้],\"<=\"&D$4)+SUMIFS(อื่นๆ[ยอดเงินเช็ค],อื่นๆ[รหัส G/L],MonthlyExpensesSummary[[#This Row],[รหัส G/L]],อื่นๆ[วันที่เริ่มขอเช็ค],\">=\"&DATEVALUE(\" 1 \"&MonthlyExpensesSummary[[#Headers],[มกราคม]]&_YEAR),อื่นๆ[วันที่เริ่มขอเช็ค],\"<=\"&D$4)","v":{"v":0,"d":"฿0.00"}},{"$f":"SUMIFS(ItemizedExpenses[ยอดเงินเช็ค],ItemizedExpenses[รหัส G/L],MonthlyExpensesSummary[[#This Row],[รหัส G/L]],ItemizedExpenses[วันที่ในใบแจ้งหนี้],\">=\"&E$3,ItemizedExpenses[วันที่ในใบแจ้งหนี้],\"<=\"&E$4)+SUMIFS(อื่นๆ[ยอดเงินเช็ค],อื่นๆ[รหัส G/L],MonthlyExpensesSummary[[#This Row],[รหัส G/L]],อื่นๆ[วันที่เริ่มขอเช็ค],\">=\"&DATEVALUE(\" 1 \"&MonthlyExpensesSummary[[#Headers],[กุมภาพันธ์]]&_YEAR),อื่นๆ[วันที่เริ่มขอเช็ค],\"<=\"&E$4)","v":{"v":0,"d":"฿0.00"}},{"$f":"SUMIFS(ItemizedExpenses[ยอดเงินเช็ค],ItemizedExpenses[รหัส G/L],MonthlyExpensesSummary[[#This Row],[รหัส G/L]],ItemizedExpenses[วันที่ในใบแจ้งหนี้],\">=\"&F$3,ItemizedExpenses[วันที่ในใบแจ้งหนี้],\"<=\"&F$4)+SUMIFS(อื่นๆ[ยอดเงินเช็ค],อื่นๆ[รหัส G/L],MonthlyExpensesSummary[[#This Row],[รหัส G/L]],อื่นๆ[วันที่เริ่มขอเช็ค],\">=\"&DATEVALUE(\" 1 \"&MonthlyExpensesSummary[[#Headers],[มีนาคม]]&_YEAR),อื่นๆ[วันที่เริ่มขอเช็ค],\"<=\"&F$4)","v":{"v":0,"d":"฿0.00"}},{"$f":"SUMIFS(ItemizedExpenses[ยอดเงินเช็ค],ItemizedExpenses[รหัส G/L],MonthlyExpensesSummary[[#This Row],[รหัส G/L]],ItemizedExpenses[วันที่ในใบแจ้งหนี้],\">=\"&G$3,ItemizedExpenses[วันที่ในใบแจ้งหนี้],\"<=\"&G$4)+SUMIFS(อื่นๆ[ยอดเงินเช็ค],อื่นๆ[รหัส G/L],MonthlyExpensesSummary[[#This Row],[รหัส G/L]],อื่นๆ[วันที่เริ่มขอเช็ค],\">=\"&DATEVALUE(\" 1 \"&MonthlyExpensesSummary[[#Headers],[เมษายน]]&_YEAR),อื่นๆ[วันที่เริ่มขอเช็ค],\"<=\"&G$4)","v":{"v":0,"d":"฿0.00"}},{"$f":"SUMIFS(ItemizedExpenses[ยอดเงินเช็ค],ItemizedExpenses[รหัส G/L],MonthlyExpensesSummary[[#This Row],[รหัส G/L]],ItemizedExpenses[วันที่ในใบแจ้งหนี้],\">=\"&H$3,ItemizedExpenses[วันที่ในใบแจ้งหนี้],\"<=\"&H$4)+SUMIFS(อื่นๆ[ยอดเงินเช็ค],อื่นๆ[รหัส G/L],MonthlyExpensesSummary[[#This Row],[รหัส G/L]],อื่นๆ[วันที่เริ่มขอเช็ค],\">=\"&DATEVALUE(\" 1 \"&MonthlyExpensesSummary[[#Headers],[พฤษภาคม]]&_YEAR),อื่นๆ[วันที่เริ่มขอเช็ค],\"<=\"&H$4)","v":{"v":0,"d":"฿0.00"}},{"$f":"SUMIFS(ItemizedExpenses[ยอดเงินเช็ค],ItemizedExpenses[รหัส G/L],MonthlyExpensesSummary[[#This Row],[รหัส G/L]],ItemizedExpenses[วันที่ในใบแจ้งหนี้],\">=\"&I$3,ItemizedExpenses[วันที่ในใบแจ้งหนี้],\"<=\"&I$4)+SUMIFS(อื่นๆ[ยอดเงินเช็ค],อื่นๆ[รหัส G/L],MonthlyExpensesSummary[[#This Row],[รหัส G/L]],อื่นๆ[วันที่เริ่มขอเช็ค],\">=\"&DATEVALUE(\" 1 \"&MonthlyExpensesSummary[[#Headers],[มิถุนายน]]&_YEAR),อื่นๆ[วันที่เริ่มขอเช็ค],\"<=\"&I$4)","v":{"v":0,"d":"฿0.00"}},{"$f":"SUMIFS(ItemizedExpenses[ยอดเงินเช็ค],ItemizedExpenses[รหัส G/L],MonthlyExpensesSummary[[#This Row],[รหัส G/L]],ItemizedExpenses[วันที่ในใบแจ้งหนี้],\">=\"&J$3,ItemizedExpenses[วันที่ในใบแจ้งหนี้],\"<=\"&J$4)+SUMIFS(อื่นๆ[ยอดเงินเช็ค],อื่นๆ[รหัส G/L],MonthlyExpensesSummary[[#This Row],[รหัส G/L]],อื่นๆ[วันที่เริ่มขอเช็ค],\">=\"&DATEVALUE(\" 1 \"&MonthlyExpensesSummary[[#Headers],[กรกฎาคม]]&_YEAR),อื่นๆ[วันที่เริ่มขอเช็ค],\"<=\"&J$4)","v":{"v":0,"d":"฿0.00"}},{"$f":"SUMIFS(ItemizedExpenses[ยอดเงินเช็ค],ItemizedExpenses[รหัส G/L],MonthlyExpensesSummary[[#This Row],[รหัส G/L]],ItemizedExpenses[วันที่ในใบแจ้งหนี้],\">=\"&K$3,ItemizedExpenses[วันที่ในใบแจ้งหนี้],\"<=\"&K$4)+SUMIFS(อื่นๆ[ยอดเงินเช็ค],อื่นๆ[รหัส G/L],MonthlyExpensesSummary[[#This Row],[รหัส G/L]],อื่นๆ[วันที่เริ่มขอเช็ค],\">=\"&DATEVALUE(\" 1 \"&MonthlyExpensesSummary[[#Headers],[สิงหาคม]]&_YEAR),อื่นๆ[วันที่เริ่มขอเช็ค],\"<=\"&K$4)","v":{"v":0,"d":"฿0.00"}},{"$f":"SUMIFS(ItemizedExpenses[ยอดเงินเช็ค],ItemizedExpenses[รหัส G/L],MonthlyExpensesSummary[[#This Row],[รหัส G/L]],ItemizedExpenses[วันที่ในใบแจ้งหนี้],\">=\"&L$3,ItemizedExpenses[วันที่ในใบแจ้งหนี้],\"<=\"&L$4)+SUMIFS(อื่นๆ[ยอดเงินเช็ค],อื่นๆ[รหัส G/L],MonthlyExpensesSummary[[#This Row],[รหัส G/L]],อื่นๆ[วันที่เริ่มขอเช็ค],\">=\"&DATEVALUE(\" 1 \"&MonthlyExpensesSummary[[#Headers],[กันยายน]]&_YEAR),อื่นๆ[วันที่เริ่มขอเช็ค],\"<=\"&L$4)","v":{"v":0,"d":"฿0.00"}},{"$f":"SUMIFS(ItemizedExpenses[ยอดเงินเช็ค],ItemizedExpenses[รหัส G/L],MonthlyExpensesSummary[[#This Row],[รหัส G/L]],ItemizedExpenses[วันที่ในใบแจ้งหนี้],\">=\"&M$3,ItemizedExpenses[วันที่ในใบแจ้งหนี้],\"<=\"&M$4)+SUMIFS(อื่นๆ[ยอดเงินเช็ค],อื่นๆ[รหัส G/L],MonthlyExpensesSummary[[#This Row],[รหัส G/L]],อื่นๆ[วันที่เริ่มขอเช็ค],\">=\"&DATEVALUE(\" 1 \"&MonthlyExpensesSummary[[#Headers],[ตุลาคม]]&_YEAR),อื่นๆ[วันที่เริ่มขอเช็ค],\"<=\"&M$4)","v":{"v":0,"d":"฿0.00"}},{"$f":"SUMIFS(ItemizedExpenses[ยอดเงินเช็ค],ItemizedExpenses[รหัส G/L],MonthlyExpensesSummary[[#This Row],[รหัส G/L]],ItemizedExpenses[วันที่ในใบแจ้งหนี้],\">=\"&N$3,ItemizedExpenses[วันที่ในใบแจ้งหนี้],\"<=\"&N$4)+SUMIFS(อื่นๆ[ยอดเงินเช็ค],อื่นๆ[รหัส G/L],MonthlyExpensesSummary[[#This Row],[รหัส G/L]],อื่นๆ[วันที่เริ่มขอเช็ค],\">=\"&DATEVALUE(\" 1 \"&MonthlyExpensesSummary[[#Headers],[พฤศจิกายน]]&_YEAR),อื่นๆ[วันที่เริ่มขอเช็ค],\"<=\"&N$4)","v":{"v":0,"d":"฿0.00"}},{"$f":"SUMIFS(ItemizedExpenses[ยอดเงินเช็ค],ItemizedExpenses[รหัส G/L],MonthlyExpensesSummary[[#This Row],[รหัส G/L]],ItemizedExpenses[วันที่ในใบแจ้งหนี้],\">=\"&O$3,ItemizedExpenses[วันที่ในใบแจ้งหนี้],\"<=\"&O$4)+SUMIFS(อื่นๆ[ยอดเงินเช็ค],อื่นๆ[รหัส G/L],MonthlyExpensesSummary[[#This Row],[รหัส G/L]],อื่นๆ[วันที่เริ่มขอเช็ค],\">=\"&DATEVALUE(\" 1 \"&MonthlyExpensesSummary[[#Headers],[ธันวาคม]]&_YEAR),อื่นๆ[วันที่เริ่มขอเช็ค],\"<=\"&O$4)","v":{"v":0,"d":"฿0.00"}},{"$f":"SUM(MonthlyExpensesSummary[[#This Row],[มกราคม]:[ธันวาคม]])","v":{"v":0,"d":"฿0.00"}}]
[null,"ผลรวม",null,{"$f":"SUBTOTAL(109,MonthlyExpensesSummary[มกราคม])","v":{"v":0,"d":"฿0.00"}},{"$f":"SUBTOTAL(109,MonthlyExpensesSummary[กุมภาพันธ์])","v":{"v":0,"d":"฿0.00"}},{"$f":"SUBTOTAL(109,MonthlyExpensesSummary[มีนาคม])","v":{"v":0,"d":"฿0.00"}},{"$f":"SUBTOTAL(109,MonthlyExpensesSummary[เมษายน])","v":{"v":0,"d":"฿0.00"}},{"$f":"SUBTOTAL(109,MonthlyExpensesSummary[พฤษภาคม])","v":{"v":0,"d":"฿0.00"}},{"$f":"SUBTOTAL(109,MonthlyExpensesSummary[มิถุนายน])","v":{"v":0,"d":"฿0.00"}},{"$f":"SUBTOTAL(109,MonthlyExpensesSummary[กรกฎาคม])","v":{"v":0,"d":"฿0.00"}},{"$f":"SUBTOTAL(109,MonthlyExpensesSummary[สิงหาคม])","v":{"v":0,"d":"฿0.00"}},{"$f":"SUBTOTAL(109,MonthlyExpensesSummary[กันยายน])","v":{"v":0,"d":"฿0.00"}},{"$f":"SUBTOTAL(109,MonthlyExpensesSummary[ตุลาคม])","v":{"v":0,"d":"฿0.00"}},{"$f":"SUBTOTAL(109,MonthlyExpensesSummary[พฤศจิกายน])","v":{"v":0,"d":"฿0.00"}},{"$f":"SUBTOTAL(109,MonthlyExpensesSummary[ธันวาคม])","v":{"v":0,"d":"฿0.00"}},{"$f":"SUBTOTAL(109,MonthlyExpensesSummary[ผลรวม])","v":{"v":0,"d":"฿0.00"}}]

{"sheet":"ค่าใช้จ่ายที่แสดงรายการ","index":2,"n_rows":6,"n_cols":10,"rows_kept":6,"merged":[[1,1,1,9],[2,1,2,5],[2,6,2,9]]}
[]
[null,"ค่าใช้จ่ายที่แสดงรายการ"]
[]
[null,"รหัส G/L","วันที่ในใบแจ้งหนี้","# ใบแจ้งหนี้","ร้องขอโดย","ยอดเงินเช็ค","ผู้รับเงิน","การใช้เช็ค","วิธีการแจกจ่าย","วันที่มอบเช็ค"]
[null,1000,"วันที่",100,"อัครรัตน์ ลีลาพันธ์",{"v":750.75,"d":"฿750.75"},"Consolidated Messenger ","ซองจดหมาย","จดหมาย","วันที่"]
[null,7000,"วันที่",101,"ภราดร โรจอนงค์",{"v":2500,"d":"฿2,500.00"},"A. Datum Corporation ","คอมพิวเตอร์เดสก์ท็อป 2 เครื่อง","เครดิต","วันที่"]

{"sheet":"การกุศลและการสนับสนุนทางการเงิน","index":3,"n_rows":6,"n_cols":12,"rows_kept":6,"merged":[[1,1,1,11],[2,1,2,5],[2,6,2,11]]}
[]
[null,"การกุศลและการสนับสนุนทางการเงิน"]
[]
[null,"รหัส G/L","วันที่เริ่มขอเช็ค","ร้องขอโดย","ยอดเงินเช็ค","การบริจาคในปีที่แล้ว","ผู้รับเงิน","ใช้สำหรับ","เซ็นโดย","ประเภท","วิธีการแจกจ่าย","วันที่มอบเช็ค"]
[null,12000,"วันที่","สุทธิดา บุญญาสาร",{"v":1000,"d":"฿1,000.00"},{"v":12,"d":"฿12.00"},"School of Fine Art ","ทุนการศึกษา","ชญาภา ไชยสุริวิรัตน์","ศิลปะ","เช็ค","วันที่"]
[null,11000,"วันที่","สุทธิดา บุญญาสาร",{"v":2500,"d":"฿2,500.00"},{"v":0,"d":"฿0.00"},"Wingtip Toys ","ชุมชน","ชนิภรณ์ เจตน์จิราวัฒน์","ชุมชน","เช็ค","วันที่"]